Cogmind - Beta 10.2 @@@ ROGUE MODE // 2021.07.13 @ 08:55:59 // Winter2019/RPGLIKE Player: Kenzurith Result: Destroyed by L-61 Swordsman with Power Sword Performance ------------- Evolutions (9) 4500 Regions Visited (34) 6800 Robots Destroyed (1192) 5960 Value Destroyed (73129) 73129 Prototype IDs (256) 5120 Alien Tech Used (1) 200 Bonus (75034) 75034 TOTAL SCORE: 170743 Bonus ------- Triggered High Security 1500 High Alert Combat Kills 52731 Follower Combat Kills 1556 Network Hubs Disabled 800 Aligned with FarCom 300 Met Data Miner 300 Used Data Conduit 3000 Destroyed Z-Imprinter 1000 Triggered Deep Caves Wall 500 Exposed GOLEM Chamber 500 Met Warlord at Base 500 MAIN.C Attacked Warlord 500 Warlord Defense Kill 6694 A7 Reached Mainframe 300 Met R17 at Cetus 500 Scanned by Researcher 500 Pursued by Intercept 2500 Destroyed MAIN.C Guards 500 Met Warlord at Command 2000 Friendly Fire -1147 Cogmind --------- Core Integrity 0/1650 Matter 780/1300 Energy 83/1840 System Corruption 0% Temperature Cool (0) Movement Immobile (Siege) Location -1/Command Parts ------- > --- POWER (3) -------- Zero-point Reactor Vortex Chain Reactor > --- PROPULSION (4) --- Experimental Biometal Heavy Treads Experimental Biometal Heavy Treads > --- UTILITY (13) ----- Advanced Power Amplifier Experimental Energy Well Experimental Matter Compressor Experimental Matter Compressor Experimental Sensor Array Advanced Signal Interpreter Advanced Target Analyzer Advanced Phase Shifter Centrium Light Armor Plating EM Dispersion Field Advanced Force Field > --- WEAPON (6) ------- Helical Railgun Helical Railgun Helical Railgun Helical Railgun Helical Railgun > --- INVENTORY (6) ---- Advanced Matter Compressor (80) EMDS Ragnarok Missile Launcher Advanced Remote Datajack Particle Cleaver Peak State ------------ > --- POWER ------------ Improved Quantum Reactor Vortex Chain Reactor > --- PROPULSION ------- Experimental Biometal Heavy Treads Experimental Biometal Heavy Treads > --- UTILITY ---------- Advanced Power Amplifier Advanced Power Amplifier Superbattery Advanced Matter Compressor Advanced Signal Interpreter Advanced Target Analyzer Experimental Core Analyzer Advanced Kinecellerator Experimental Phase Shifter Centrium Light Armor Plating Thermal Barrier EM Dispersion Field Advanced Force Field > --- WEAPON ----------- Helical Railgun Helical Railgun Helical Railgun Helical Railgun Containment Facilitator > --- INVENTORY -------- Experimental Sensor Array Antimissile System EMDS Compact Tesla Bomb Launcher Particle Cleaver [Rating: 238] Favorites ----------- Power Vortex Chain Reactor Engine Light Deuterium Engine Power Core Neutrino Core Reactor Vortex Chain Reactor Propulsion Heavy Treads Treads Heavy Treads Leg Carbon-fiber Leg Wheel Armored Huge Wheel Hover Unit Improved Airjet Utility Advanced Power Amplifier Device Advanced Power Amplifier Storage Superbattery Processor Advanced Signal Interpreter Protection Damper Plating Weapon Helical Railgun Energy Gun Precision Beam Rifle Energy Cannon EMDS Ballistic Gun Helical Railgun Ballistic Cannon Linear Accelerator Launcher Long-range Missile Launcher Special Weapon Improved Remote Datajack Impact Weapon Powered Hammer Slashing Weapon Particle Cleaver Piercing Weapon Plasma Lance Build | -11 -10 -10 -9 -9 -9 -8 -8 -7 -7 -7 -7 -6 -6 -6 -6 -6 -6 -6 -6 -5 -5 -5 -5 -5 -5 -4 -4 -4 -4 -3 -3 -2 -1 -1 ------- Run | Scr Mat Min Mat Min Exi Min Mat Fac Low Low Dat Pro Fac Was Fac Low Low Zio Dee Pro Fac Ext Cet Arc Hub Fac Upp Upp War Pro Res Res Acc Com Slots Evolved 21 | . 2 1 5 . . . 3 . 2 . . . 2 . . . . . . 1 . 1 . . 1 . . . . . 1 2 . . Power 2 | . . . . . . . . . 1 . . . . . . . . . . . . . . . . . . . . . . 1 . . Propulsion 3 | . . . 2 . . . . . . . . . 1 . . . . . . . . . . . . . . . . . . . . . Utility 12 | . 1 1 3 . . . 1 . 1 . . . 1 . . . . . . 1 . 1 . . 1 . . . . . 1 . . . Weapon 4 | . 1 . . . . . 2 . . . . . . . . . . . . . . . . . . . . . . . . 1 . . Parts Attached 394 | . 6 4 28 2 1 5 16 3 8 2 1 1 10 8 9 3 . 24 23 2 10 5 8 1 18 . 2 3 17 . 13 30 21 110 Power 33 | . . 1 2 . . 1 1 . 2 . . . 2 1 2 . . 2 6 . 1 . 2 . . . . . 1 . . 1 1 7 Engine 6 | . . 1 1 . . . 1 . . . . . 2 . 1 . . . . . . . . . . . . . . . . . . . Core 8 | . . . 1 . . 1 . . 2 . . . . . 1 . . 1 2 . . . . . . . . . . . . . . . Reactor 19 | . . . . . . . . . . . . . . 1 . . . 1 4 . 1 . 2 . . . . . 1 . . 1 1 7 Propulsion 36 | . . 1 8 . . 2 1 2 . . . . 4 2 . . . 2 3 . 2 . 2 . . . . . 2 . . 2 2 1 Treads 16 | . . 1 1 . . . . . . . . . . 2 . . . 2 1 . 1 . 2 . . . . . 1 . . 2 2 1 Leg 11 | . . . 7 . . 2 1 . . . . . . . . . . . . . . . . . . . . . 1 . . . . . Wheel 3 | . . . . . . . . 1 . . . . 2 . . . . . . . . . . . . . . . . . . . . . Hover 6 | . . . . . . . . 1 . . . . 2 . . . . . 2 . 1 . . . . . . . . . . . . . Flight . | . . . . . . . . . . . . . . . . . . . . . . . . . . . . . . . . . . . Utility 164 | . 2 1 9 2 1 . 5 1 2 2 . . 2 2 3 1 . 7 6 2 3 5 . 1 16 . . . 11 . 11 11 7 51 Device 102 | . 1 . 4 . . . 3 1 1 1 . . 2 . 1 1 . 5 5 2 2 5 . 1 13 . . . 10 . 9 9 4 22 Storage 19 | . . . . . 1 . . . . . . . . . . . . 1 . . . . . . . . . . . . . . 2 15 Processor 13 | . 1 . 1 1 . . . . 1 1 . . . . 2 . . . . . . . . . . . . . 1 . 2 1 . 2 Hackware . | . . . . . . . . . . . . . . . . . . . . . . . . . . . . . . . . . . . Protection 30 | . . 1 4 1 . . 2 . . . . . . 2 . . . 1 1 . 1 . . . 3 . . . . . . 1 1 12 Artifact . | . . . . . . . . . . . . . . . . . . . . . . . . . . . . . . . . . . . Weapon 161 | . 4 1 9 . . 2 9 . 4 . 1 1 2 3 4 2 . 13 8 . 4 . 4 . 2 . 2 3 3 . 2 16 11 51 Energy Gun 37 | . . . 1 . . . 5 . 2 . . 1 2 1 3 1 . 11 7 . 1 . . . . . . . . . 1 . . 1 Energy Cannon 9 | . 4 . 1 . . . . . . . . . . . . . . . . . . . . . 1 . 1 . . . . . . 2 Ballistic Gun 74 | . . 1 7 . . 1 4 . . . . . . . 1 . . . . . . . 4 . 1 . . 1 2 . 1 13 8 30 Ballistic Cannon 2 | . . . . . . . . . . . . . . . . . . 1 . . . . . . . . . . . . . . 1 . Launcher 25 | . . . . . . 1 . . 2 . . . . 1 . 1 . . 1 . 2 . . . . . . 2 . . . 1 1 13 Special Weapon 6 | . . . . . . . . . . . . . . . . . . . . . 1 . . . . . 1 . 1 . . 2 . 1 Impact Weapon 3 | . . . . . . . . . . . 1 . . 1 . . . 1 . . . . . . . . . . . . . . . . Slashing Weapon 4 | . . . . . . . . . . . . . . . . . . . . . . . . . . . . . . . . . . 4 Piercing Weapon 1 | . . . . . . . . . . . . . . . . . . . . . . . . . . . . . . . . . 1 . Special Melee Weapon . | . . . . . . . . . . . . . . . . . . . . . . . . . . . . . . . . . . . Unidentified Prototypes 22 | . . . 1 . . . 2 1 . . . . . . 1 . . . 8 1 . . . . 1 . . . 2 . . 1 . 4 Parts Lost 4 | . . . 2 . . . 1 . . . . . . . . . . . . . . . . . . . . . . . . . . 1 Power . | . . . . . . . . . . . . . . . . . . . . . . . . . . . . . . . . . . . Propulsion . | . . . . . . . . . . . . . . . . . . . . . . . . . . . . . . . . . . . Utility 3 | . . . 1 . . . 1 . . . . . . . . . . . . . . . . . . . . . . . . . . 1 Weapon 1 | . . . 1 . . . . . . . . . . . . . . . . . . . . . . . . . . . . . . . Highest Loss Streak 1 | . . . 1 . . . 1 . . . . . . . . . . . . . . . . . . . . . . . . . . 1 Average Slot Usage (%) 83 | . 79 99 93 100 100 100 99 99 93 94 94 94 94 84 78 78 78 71 77 77 79 80 80 81 78 78 77 78 73 73 74 77 87 85 Engine 1 | . 21 14 2 . . . 2 6 . . . . 9 8 1 . . . . . . . . . . . . . . . . . . . Core 2 | . . . 8 8 8 8 3 . 8 11 11 11 1 . 3 5 5 4 4 4 3 . . . . . . . . . . . . . Reactor 4 | . . . . . . . . . . . . . . 1 5 5 5 4 5 4 5 9 9 9 8 8 8 8 4 4 4 5 7 6 Treads 6 | . . 13 6 . . . . . . . . . . 6 10 10 10 9 9 9 8 9 9 9 8 8 8 8 8 8 8 7 7 7 Leg 2 | . 21 . 6 25 25 25 21 13 . . . . . . . . . . . . . . . . . . . . . . . . . . Device 19 | . . 14 21 21 16 16 15 19 19 21 17 17 19 16 15 15 15 14 12 18 14 15 18 18 21 26 26 26 25 26 25 29 29 20 Storage 5 | . . . . . 4 8 6 6 5 5 5 5 5 5 5 5 5 4 5 4 4 4 4 4 4 4 4 4 4 4 4 3 3 11 Processor 10 | . . 14 12 19 19 16 13 13 13 13 17 17 15 11 9 10 10 10 10 9 9 9 9 9 8 8 8 8 8 8 11 8 11 9 Protection 5 | . . 13 14 8 8 8 7 6 5 5 5 5 5 4 5 5 5 4 7 4 8 9 9 9 5 4 4 4 4 4 4 3 2 3 Energy Gun 8 | . . . 6 . . . 5 26 23 23 20 23 21 20 21 20 21 16 20 19 19 18 12 . . . . . . . . . . . Energy Cannon 1 | . 14 14 1 . . . . . . . . . . . . . . . . . . . . . 3 4 3 4 4 4 4 2 . . Ballistic Gun 10 | . 21 14 13 16 16 15 18 . . . . . . . . . . . . . . . 4 18 14 13 13 10 11 13 12 11 22 20 Naked Turns . | . . . . . . . . . . . . . . . . . . . . . . . . . . . . . . . . . . . Heaviest Build 175 | 4 8 17 26 19 21 21 38 35 60 56 55 54 60 97 108 108 103 104 110 110 118 119 135 135 148 146 146 148 148 133 138 175 139 147 Greatest Support 175 | 10 10 20 43 43 43 45 45 45 28 28 28 28 51 145 145 145 145 145 145 145 145 145 165 165 165 165 165 165 165 165 165 165 175 175 Greatest Overweight (x) 12 | . . . 2 . . . . 1 2 1 1 1 2 . . . . 6 12 . 1 . . . . . . . 1 . . 1 . . Average Overweight (x) . | . . . . . . . . . 1 1 1 1 . . . . . . . . . . . . . . . . . . . . . . Largest Inventory Capacity 6 | . 1 1 1 2 2 2 3 3 3 3 3 3 3 3 4 4 4 4 4 4 4 4 4 4 5 5 5 5 5 5 5 5 6 6 Average Capacity 4 | . . 1 1 1 2 2 2 3 3 3 3 3 3 3 3 4 4 4 4 4 4 4 4 4 4 5 5 5 5 5 5 5 5 6 Most Carried 6 | . 1 1 1 2 2 2 3 3 3 3 3 3 3 3 4 4 4 4 4 4 4 4 4 4 5 5 5 5 5 5 5 5 6 6 Average Carried 4 | . . . . 1 2 2 2 3 3 3 3 3 3 2 3 3 4 4 3 4 3 3 4 3 4 5 5 5 4 5 4 4 5 5 Final Capacity 6 | . 1 1 1 2 2 2 3 3 3 3 3 3 3 3 4 4 4 4 4 4 4 4 4 4 5 5 5 5 5 5 5 5 6 6 Final Carried 6 | . . 1 1 2 2 2 3 3 3 3 3 3 3 3 4 4 4 4 4 4 4 4 4 4 5 5 5 5 5 5 5 5 6 6 Class Distribution -------------------- 25% | Scavenger-Skirmisher 25% | Scavenger-Tank 21% | Scavenger-Executioner 18% | Scavenger-Mutant 3% | Skirmisher Dominant Class ---------------- Mutant | -10/Materials Scavenger-Mutant | -10/Mines Scavenger-Skirmisher | -9/Materials Skirmisher | -9/Mines Skirmisher | -9/Exiles Scavenger-Skirmisher | -8/Mines Scavenger-Skirmisher | -8/Materials Scavenger-Skirmisher | -7/Factory Scavenger-Skirmisher | -7/Lower Caves Scavenger-Skirmisher | -7/Lower Caves Scavenger-Skirmisher | -7/Data Miner Scavenger-Skirmisher | -6/Proximity Caves Scavenger-Skirmisher | -6/Factory Scavenger-Skirmisher | -6/Waste Scavenger-Tank | -6/Factory Scavenger-Tank | -6/Lower Caves Scavenger-Tank | -6/Lower Caves Scavenger-Tank | -6/Zion Scavenger-Tank | -6/Deep Caves Scavenger-Tank | -5/Proximity Caves Scavenger-Tank | -5/Factory Scavenger-Tank | -5/Extension Scavenger-Tank | -5/Cetus Scavenger-Tank | -5/Archives Scavenger-Tank | -5/Hub_04(d) Scavenger-Skirmisher | -4/Factory Scavenger-Mutant | -4/Upper Caves Scavenger-Mutant | -4/Upper Caves Scavenger-Mutant | -4/Warlord Scavenger-Mutant | -3/Proximity Caves Scavenger-Skirmisher | -3/Research Scavenger-Skirmisher | -2/Research Scavenger-Executioner | -1/Access Scavenger-Executioner | -1/Command Resources | -11 -10 -10 -9 -9 -9 -8 -8 -7 -7 -7 -7 -6 -6 -6 -6 -6 -6 -6 -6 -5 -5 -5 -5 -5 -5 -4 -4 -4 -4 -3 -3 -2 -1 -1 ----------- Run | Scr Mat Min Mat Min Exi Min Mat Fac Low Low Dat Pro Fac Was Fac Low Low Zio Dee Pro Fac Ext Cet Arc Hub Fac Upp Upp War Pro Res Res Acc Com Matter Collected 25149 | 200 73 122 353 82 . 314 632 67 145 20 . 20 101 80 355 72 63 104 724 40 100 35 142 154 2988 60 70 126 1088 448 857 1232 5287 8995 Remotely . | . . . . . . . . . . . . . . . . . . . . . . . . . . . . . . . . . . . Salvage Created 70099 | . 214 273 498 14 . 318 958 175 453 220 . 198 688 . 3067 703 295 . 3427 432 233 1395 647 594 7445 226 102 130 2887 589 4518 2778 14047 22575 Parts 2487 | . 28 15 37 4 . 44 59 8 16 9 . 10 22 5 118 15 14 . 34 19 14 76 27 18 295 6 4 12 102 36 139 71 314 916 Haulers Intercepted 16 | . 1 . 1 . . . 2 . . . . . . . 5 . . . . . . . . . . . . . . . 4 . 3 . Recyclers Shooed 8 | . . . . . . . . . . . . . 2 . 3 . . . . . . . . . . . . . . . 1 . 2 . Parts Field Recycled . | . . . . . . . . . . . . . . . . . . . . . . . . . . . . . . . . . . . Retrieved Matter . | . . . . . . . . . . . . . . . . . . . . . . . . . . . . . . . . . . . Parts Self-Destructed 250 | . . . . . . . . . 15 6 . 8 . . . 4 9 . . 19 . . . . . . . 8 164 17 . . . . Prevented 77 | . . . . . . . . . . 3 . . . . . . . . . . . . . . . . 3 3 49 19 . . . . Kills | -11 -10 -10 -9 -9 -9 -8 -8 -7 -7 -7 -7 -6 -6 -6 -6 -6 -6 -6 -6 -5 -5 -5 -5 -5 -5 -4 -4 -4 -4 -3 -3 -2 -1 -1 ------- Run | Scr Mat Min Mat Min Exi Min Mat Fac Low Low Dat Pro Fac Was Fac Low Low Zio Dee Pro Fac Ext Cet Arc Hub Fac Upp Upp War Pro Res Res Acc Com Combat Hostiles Destroyed 1078 | . 9 6 11 . . 8 14 2 15 3 . 6 3 1 33 4 4 . 68 9 4 23 9 4 141 2 2 9 46 22 44 35 158 383 Melee 1 | . . . . . . . . . . . . . . . . . . . . . . . . . . . . . . . 1 . . . Guns 628 | . 6 2 10 . . 5 14 2 6 3 . 6 2 1 30 . 4 . 32 9 4 20 9 4 33 . . 1 22 7 16 20 156 204 Cannons 110 | . 3 4 1 . . . . . . . . . . . . . . . . . . . . . 55 . . 3 15 12 11 3 . 3 AOE 208 | . . . . . . 3 . . 9 . . . 1 . . 4 . . 35 . . 3 . . 3 . . 5 1 . . . 1 143 Classes Destroyed 31 | . 5 2 1 1 . 3 . 1 1 . . . . 1 2 . 1 . 4 . . 1 . . 1 . . . 4 . . . 2 1 Worker 51 | . . 3 . . . 2 . . . . . . . . 1 . . . . . 1 . . . 8 . . . . . 12 . 18 6 Builder 24 | . . 1 . . . 2 . . . . . . . . 1 . . . . . . 1 . . 2 . . . . . . . 17 . Tunneler 7 | . . . . 1 . 4 . . . . . . . . . . . . . . . . . . 2 . . . . . . . . . Hauler 16 | . 1 . 1 . . . 2 . . . . . . . 5 . . . . . . . . . . . . . . . 4 . 3 . Recycler 22 | . . . . . . 1 . . . . . . 2 . 2 . . . . . . . . . 1 . . . . . 7 . 5 4 Carrier 5 | . . . . . . . . . . . . . . . . . . . . . . . . . . . . . . . . . 5 . Mechanic 17 | . . . . . . . . . . . . . . . 1 . . . . . . . . . . . . . 1 . . . 12 3 Operator 5 | . 1 . . . . . . . . . . . . . . . . . . . . 1 . 2 1 . . . . . . . . . Watcher 23 | . 1 . . . . . 1 . . . . . 2 . 1 . . . . . . 2 . . 3 . . . . . 3 . 4 6 Swarmer 132 | . 8 4 1 . . 4 3 . 6 . . 6 . . 3 4 2 . . 5 . 3 . . 9 . . 8 . 11 . 1 5 49 Saboteur 23 | . . . . . . . . . . . . . . . 1 . . . . . . . . . 6 . . . 3 . 1 . 3 9 Grunt 354 | . 1 2 7 . . 2 8 . 5 2 . . . . 17 . . . . 1 3 12 3 . 45 . . 1 14 6 20 8 61 136 Brawler 53 | . . . . . . 1 . . . . . . . . 2 . . . . . . . . . 7 . . . 4 . 1 . 12 26 Duelist 53 | . . . . . . . . . 2 1 . . . . . . . . . . . . . . 9 . . . 2 2 . . 11 26 Protector 26 | . . . . . . . . . . . . . . . . . . . . . . . . . 8 . . . 1 . . . 8 9 Sentry 42 | . . . 3 . . . 3 1 1 . . . . . 2 . 1 . . 1 . 3 . 4 11 2 1 . . 1 3 . 2 3 Demolisher 6 | . . . . . . . . . . . . . . . . . . . . . . . . . . . . . 1 . . 1 . 4 Specialist 9 | . . . . . . . . . . . . . . . . . . . . . . . . . . . . . 3 . . . . 6 Hunter 96 | . . . . . . 1 . . 1 . . . . . 3 . . . . . . 2 . . 21 . . . . 2 6 2 12 46 Programmer 97 | . . . . . . . . 1 . . . . 1 . 3 . . . . 2 1 1 . . 14 . . . 9 . 8 . 22 35 Behemoth 10 | . . . . . . . . . . . . . . . . . . . . . . 2 . . 1 . . . 3 . 1 . 2 1 Compactor 1 | . . . . . . . . . . . . . . 1 . . . . . . . . . . . . . . . . . . . . Cetus Guard 6 | . . . . . . . . . . . . . . . . . . . . . . . 6 . . . . . . . . . . . M Guard 2 | . . . . . . . . . . . . . . . . . . . . . . . . . . . . . . . . . . 2 Lightning 9 | . . . . . . . . . . . . . . . . . . . . . . . . . 9 . . . . . . . . . Tracker 10 | . . . . . . . . . . . . . 1 . 1 . . . . . . . . . . . . . . . 2 4 2 . Combat Programmer 12 | . . . . . . . . . . . . . 1 . 1 . . . . . . . . . . . . . . . 2 4 2 2 Investigator 3 | . . . . . . . . . . . . . . . . . . . . . . . . . . . . . . . . . 2 1 Striker 32 | . . . . . . . . . . . . . . . . . . . . . . . . . . . . . 1 . . 7 6 18 Executioner 32 | . . . . . . . . . . . . . . . . . . . . . . . . . . . . . 4 . . 8 10 10 Z-Light 7 | . . . . . . . . . . . . . . . . . . . 7 . . . . . . . . . . . . . . . Decomposer 1 | . . . . . . . . . . . . 1 . . . . . . . . . . . . . . . . . . . . . . Assembled 33 | . . . . . . . . . . . . . . . . . . . 33 . . . . . . . . . . . . . . . Golem 29 | . . . . . . . . . . . . . . . . . . . 28 . . . . . 1 . . . . . . . . . Thug 2 | . . . . . . . . . . . . . . . . . . . . . . . . . . . . . 1 . . . . 1 Fireman 1 | . . . . . . . . . . . . . . . . . . . 1 . . . . . . . . . . . . . . . Mutant 3 | . . . . . . . . . . . . . . . . . 1 . . . . . . . . . 1 . 1 . . . . . Troll 1 | . . . . . . . . . . . . . . . . . . . . . . . . . . . . . . . . . . 1 Best Kill Streak 98 | . 4 4 5 1 . 4 3 1 7 1 . 3 3 1 5 4 3 . 43 4 3 6 6 6 22 2 1 5 11 9 13 7 53 98 Combat Bots Only 97 | . 3 3 5 . . 4 3 1 7 1 . 3 1 1 5 4 3 . 43 4 3 6 6 4 22 2 1 5 11 9 7 7 42 97 Max Kills in Single Turn 14 | . 1 1 1 1 . 3 1 1 3 1 . 3 1 1 2 4 1 . 12 3 1 3 1 2 7 1 1 4 3 3 2 2 5 14 Gunslinging 3 | . . . . . . . . . . . . 2 . . . . . . . 2 . 1 . . 1 . . . 2 2 1 1 3 3 Exploded 14 | . . . . . . 3 . . 3 . . . 1 . . 4 . . 12 . . 3 . . 1 . . 4 1 . . . 1 14 Melee 1 | . . . . . . . . . . . . . . . . . . . . . . . . . . . . . . . 1 . . . Uniques/NPCs Destroyed 1 | . . . . . . . . . . . . . . . . . . . 1 . . . . . . . . . . . . . . . Z-Imprinter (-6/Deep Caves) Combat | -11 -10 -10 -9 -9 -9 -8 -8 -7 -7 -7 -7 -6 -6 -6 -6 -6 -6 -6 -6 -5 -5 -5 -5 -5 -5 -4 -4 -4 -4 -3 -3 -2 -1 -1 -------- Run | Scr Mat Min Mat Min Exi Min Mat Fac Low Low Dat Pro Fac Was Fac Low Low Zio Dee Pro Fac Ext Cet Arc Hub Fac Upp Upp War Pro Res Res Acc Com Damage Taken 30726 | . 231 195 1228 . . 388 438 29 501 21 484 74 144 19 467 6 71 . 916 143 14 283 93 30 4389 80 22 67 1032 948 1608 1465 4276 11064 Core 20417 | . 189 146 925 . . 276 313 25 325 16 379 56 103 8 255 4 33 . 503 78 10 120 49 15 2418 62 12 41 583 537 923 992 3151 7870 Absorbed by Shields 18699 | . . . . . . . . 10 196 8 168 27 153 21 493 7 75 . 671 151 16 292 98 33 1483 81 22 73 . . . 1514 4102 9005 Reduced by Siege Mode 297 | . . . . . . . . . . . . . . . 11 . . . 18 2 1 1 1 . 54 . . . . 8 20 28 66 87 Redirected to Core 18605 | . 121 133 703 . . 260 313 14 274 16 272 56 103 8 247 4 33 . 492 66 10 120 39 15 2305 62 12 41 536 511 868 897 2919 7155 Core Remaining (%) 78 | 100 . 75 . . . 68 66 . . . . 42 . . . . . . . 99 . . . . 82 . . . . 88 100 66 . . Volleys Fired 1633 | . 34 23 38 3 . 40 43 6 21 4 . 6 14 5 78 18 9 . 123 18 29 35 18 9 260 6 5 10 87 36 114 78 169 294 Largest 6 | . 2 2 2 2 . 2 4 4 4 4 . 4 4 4 4 2 4 . 4 4 4 4 4 4 4 1 1 1 4 3 3 6 6 6 Hottest 294 | . 80 83 98 46 . 46 244 244 244 244 . 244 282 282 282 160 282 . 294 280 280 280 280 140 140 70 70 70 175 105 105 236 228 235 Shots Fired 5048 | . 68 46 75 6 . 78 150 24 65 16 . 24 56 20 304 36 38 . 371 70 63 137 72 36 422 6 5 10 170 54 198 192 931 1305 Gun 4491 | . 34 23 63 6 . 76 150 24 60 16 . 24 56 20 304 35 38 . 364 70 63 136 72 36 230 . . 1 120 27 126 153 929 1235 Cannon 480 | . 34 23 12 . . . . . . . . . . . . . . . . . . . . . 191 6 5 8 49 27 72 36 1 16 Launcher 75 | . . . . . . 2 . . 5 . . . . . . 1 . . 7 . . 1 . . 1 . . 1 1 . . 1 1 54 Special 2 | . . . . . . . . . . . . . . . . . . . . . . . . . . . . . . . . 2 . . Kinetic 3181 | . 34 23 42 6 . 76 134 . . . . . . . . . . . . . . . 8 36 230 . . 1 120 27 126 153 930 1235 Thermal 1189 | . 34 23 33 . . . 16 24 60 16 . 24 56 20 304 35 38 . 360 36 14 68 28 . . . . . . . . . . . Explosive 33 | . . . . . . 2 . . 5 . . . . . . 1 . . 7 . . 1 . . 1 . . 1 1 . . . . 14 Electromagnetic 452 | . . . . . . . . . . . . . . . . . . . . . . . . . 191 6 5 8 49 27 72 37 1 56 Phasic 191 | . . . . . . . . . . . . . . . . . . . 4 34 49 68 36 . . . . . . . . . . . Robot Hit Streak 93 | . 5 9 20 7 . 25 13 9 18 6 . 16 21 15 44 32 15 . 72 93 18 42 36 58 69 17 21 29 52 23 53 44 62 45 Robot Miss Streak 6 | . 6 2 3 . . 2 4 . 1 2 . 1 2 . 2 . 1 . 2 1 1 1 1 1 2 . . 1 2 4 1 4 6 3 Penetration Max 2 | . . . . . . . . . . . . . . . . . . . . . . . . 1 1 . . 1 1 1 1 1 2 2 Secondary Targets 221 | . . . . . . . 1 . 2 . . 3 . . 10 . 1 . 3 4 . 4 3 . 8 . . . 12 4 3 6 75 82 Max Gunslinging Chain 3 | . . . . . . . 1 . 1 . . 2 . . 1 . 1 . 1 2 . 1 1 . 1 . . . 2 2 1 1 3 3 Shots Hit Robots 3903 | . 32 28 54 3 . 56 86 9 52 10 1 19 39 14 247 26 23 1 284 53 16 108 62 28 366 3 4 9 149 46 180 145 711 1039 Core Hits 2556 | . 17 11 17 2 . 23 32 5 27 5 . 10 23 4 103 17 9 . 255 14 8 48 22 14 203 1 1 9 78 31 104 62 477 924 Critical Hits 610 | . . . . . . 3 3 . . . . . 4 1 11 1 1 . 27 4 2 7 4 7 94 1 . 2 47 12 60 15 134 170 Critical Kills 199 | . . . . . . 1 2 . . . . . . 1 1 1 1 . 18 3 2 4 1 4 38 . . . 13 4 16 5 39 45 Critical Parts Destroyed 307 | . . . . . . 2 1 . . . . . 4 . 10 . . . 8 1 . 3 1 1 53 1 . 2 16 8 29 7 71 89 Melee Attacks 85 | . . . . . . . . . . . 5 . . 1 . . . 12 . . . . . . . . . . . . . . 21 46 Impact 18 | . . . . . . . . . . . 5 . . 1 . . . 12 . . . . . . . . . . . . . . . . Slashing 46 | . . . . . . . . . . . . . . . . . . . . . . . . . . . . . . . . . . 46 Piercing 21 | . . . . . . . . . . . . . . . . . . . . . . . . . . . . . . . . . 21 . Sneak Attacks 2 | . . . . . . . . . . . 1 . . . . . . 1 . . . . . . . . . . . . . . . . Combat Hostiles . | . . . . . . . . . . . . . . . . . . . . . . . . . . . . . . . . . . . Follow-up Attacks . | . . . . . . . . . . . . . . . . . . . . . . . . . . . . . . . . . . . Damage Inflicted 210333 | . 393 441 968 59 . 934 1152 178 1357 177 55 353 907 330 5919 915 513 52 10259 1596 490 3725 1989 816 19168 278 202 934 6527 2021 8859 6572 41203 90991 Guns 130990 | . 201 209 847 59 . 791 1152 178 748 177 . 353 846 330 5826 643 513 . 6599 1596 490 3319 1989 816 5500 . . 33 3484 617 4083 4551 41126 43914 Cannons 25276 | . 192 232 120 . . . . . . . . . . . . . . . . . . . . . 12350 278 202 450 2635 1404 4563 1899 . 951 Explosions 45053 | . . . . . . 143 . . 609 . . . 61 . . 272 . . 3660 . . 406 . . 1132 . . 451 408 . 155 108 22 37626 Melee 8571 | . . . . . . . . . . . 55 . . . . . . 52 . . . . . . . . . . . . . . . 8464 Ramming 443 | . . . 1 . . . . . . . . . . . 93 . . . . . . . . . 186 . . . . . 58 14 55 36 Kinetic 107151 | . 201 209 464 59 . 791 1085 . . . . . . . . . . . . . . . 218 816 5500 . . 33 3484 617 4083 4551 41126 43914 Thermal 31600 | . 192 232 503 . . . 67 178 748 177 . 353 846 330 5826 643 513 . 6599 768 274 1627 727 . 247 . . 55 366 . 155 . . 10174 Explosive 24043 | . . . . . . 143 . . 609 . . . 61 . . 272 . . 3660 . . 406 . . . . . 396 42 . . . 22 18432 Electromagnetic 34745 | . . . . . . . . . . . . . . . . . . . . . . . . . 13235 278 202 450 2635 1404 4563 2007 . 9971 Impact 107 | . . . . . . . . . . . 55 . . . . . . 52 . . . . . . . . . . . . . . . . Slashing 8464 | . . . . . . . . . . . . . . . . . . . . . . . . . . . . . . . . . . 8464 Piercing . | . . . . . . . . . . . . . . . . . . . . . . . . . . . . . . . . . . . Phasic 3780 | . . . . . . . . . . . . . . . . . . . . 828 216 1692 1044 . . . . . . . . . . . Highest Corruption 17 | . . . . . . . . . . . . . . 10 11 11 11 11 . . . . . . 3 . . . . . 2 3 4 17 Average Corruption 9 | . . . . . . . . . . . . . . 10 10 11 11 11 . . . . . . 1 . . . . . 1 2 3 11 Corruption Purged 20 | . . . . . . . . . . . . . . . . . . . . . . . . . 3 . . . . . . . . 17 Effects 705 | . . . . . . . . . . . . . . 15 131 27 37 9 . . . . . . 16 . . . . . 7 2 35 426 Message Errors 111 | . . . . . . . . . . . . . . 3 17 6 5 3 . . . . . . 6 . . . . . 1 1 11 58 Matter Fused 111 | . . . . . . . . . . . . . . 1 24 4 9 2 . . . . . . 1 . . . . . . . 6 64 Heat Flow Errors 52 | . . . . . . . . . . . . . . 1 14 2 1 . . . . . . . . . . . . . 1 . 2 31 Energy Discharges 62 | . . . . . . . . . . . . . . 1 10 2 1 1 . . . . . . . . . . . . 2 . 3 42 Parts Rejected 3 | . . . . . . . . . . . . . . . . . . . . . . . . . . . . . . . . . . 3 Data Loss (minor) 49 | . . . . . . . . . . . . . . 1 9 1 5 . . . . . . . 1 . . . . . 2 1 4 25 Data Loss (major) 17 | . . . . . . . . . . . . . . . 6 2 1 1 . . . . . . . . . . . . . . . 7 Misfires 18 | . . . . . . . . . . . . . . 1 3 2 2 . . . . . . . . . . . . . . . . 10 Alerts 6 | . . . . . . . . . . . . . . . 1 . 1 . . . . . . . . . . . . . . . . 4 Misdirections 61 | . . . . . . . . . . . . . . 2 10 4 7 2 . . . . . . . . . . . . . . . 36 Targeting Errors 181 | . . . . . . . . . . . . . . 4 31 3 5 . . . . . . . 8 . . . . . 1 . 7 122 Weapon Failures 34 | . . . . . . . . . . . . . . 1 6 1 . . . . . . . . . . . . . . . . 2 24 Overload Shots . | . . . . . . . . . . . . . . . . . . . . . . . . . . . . . . . . . . . Overflow Damage 3884 | . 8 . . . . . . . 9 . . . . . . . . . 121 . . . . . 564 . 15 23 121 29 189 8 . 2797 Projectiles 848 | . 8 . . . . . . . . . . . . . . . . . . . . . . . 500 . 15 8 55 29 170 8 . 55 Explosions 1767 | . . . . . . . . . 9 . . . . . . . . . 121 . . . . . 64 . . 15 66 . 19 . . 1473 Melee 1269 | . . . . . . . . . . . . . . . . . . . . . . . . . . . . . . . . . . 1269 Knockbacks 5 | . . . . . . . . . . . . . . . 2 . . 1 . . . . . . 1 . . . . . . 1 . . Impact 5 | . . . . . . . . . . . . . . . 2 . . 1 . . . . . . 1 . . . . . . 1 . . Kinetic . | . . . . . . . . . . . . . . . . . . . . . . . . . . . . . . . . . . . Secondary . | . . . . . . . . . . . . . . . . . . . . . . . . . . . . . . . . . . . Self-Inflicted Damage 507 | . . . . . . . . . 34 . . . 83 . . . . . . . . . . . 35 . . . . . . . . 355 Shots 29 | . . . . . . . . . 2 . . . 1 . . . . . . . . . . . 4 . . . . . . . . 22 Rammed 34 | . . . 1 . . . . . . . . . . . 9 . . . . . . . . . 13 . . . . . 3 1 4 3 Targets Rammed 35 | . . . 1 . . . . . . . . . . . 9 . . . . . . . . . 13 . . . . . 4 1 4 3 Kicked . | . . . . . . . . . . . . . . . . . . . . . . . . . . . . . . . . . . . Crushed 1 | . . . . . . . . . . . . . . . . . . . . . . . . . . . . . . . 1 . . . Highest Temperature 332 | . 144 52 104 . . 8 229 42 27 21 . 30 84 72 332 142 215 . 249 24 28 40 266 . 41 . . . . 6 61 . 151 247 Average Temperature 61 | . 62 20 35 . . 8 56 28 12 11 . 12 32 31 94 49 26 . 61 12 12 14 105 . 13 . . . . 6 61 . 77 93 Received Heat Transfer 3972 | . 36 78 492 . . 81 180 8 151 12 56 . . 4 147 . 14 . 211 4 8 54 . 4 901 4 14 5 141 111 159 60 461 576 Effects 7 | . . . . . . . 4 . . . . . . . 2 . . . 1 . . . . . . . . . . . . . . . Interference 7 | . . . . . . . 4 . . . . . . . 2 . . . 1 . . . . . . . . . . . . . . . Siege Activations 56 | . . . . . . . . . . . . . . . 6 . . . 4 2 1 1 1 . 12 . . . . 2 4 8 9 6 Total Turns 1219 | . . . . . . . . . . . . . . . 99 . . . 130 22 9 7 18 . 258 . . . . 35 111 113 245 172 Longest Duration 88 | . . . . . . . . . . . . . . . 34 . . . 88 15 9 7 18 . 50 . . . . 19 69 28 50 48 Robots Corrupted 131 | . . . . . . . . . . . . . . . . . . . . . . . . . 52 2 2 . 8 3 20 12 . 32 Combat Hostiles 125 | . . . . . . . . . . . . . . . . . . . . . . . . . 50 2 2 . 8 3 16 12 . 32 Parts Fried 303 | . . . . . . . . . . . . . . . . . . . . . . 1 1 . 122 2 4 1 28 13 57 23 . 51 Impact Corruptions 1 | . . . . . . . . . . . . . . . 1 . . . . . . . . . . . . . . . . . . . Robots Melted 4 | . . . . . . . . . . . . . . . 3 . . . 1 . . . . . . . . . . . . . . . Combat Hostiles 4 | . . . . . . . . . . . . . . . 3 . . . 1 . . . . . . . . . . . . . . . Parts Melted 114 | . . . 3 . . . 1 2 14 . . 2 5 . 42 . 2 . 12 3 . 5 3 . 1 . . . 1 . 1 . 12 5 Heat Transferred 41146 | . 407 481 925 . . . 148 333 1591 370 . 703 1332 518 9435 925 851 . 10099 1036 370 2294 999 . 225 . . . 250 . 100 . . 7754 Parts Sabotaged 23 | . . . . . . . . . . . . . . . . . . . . . . . . . . . . . . . . . 6 17 Parts Stolen . | . . . . . . . . . . . . . . . . . . . . . . . . . . . . . . . . . . . Parts Stripped . | . . . . . . . . . . . . . . . . . . . . . . . . . . . . . . . . . . . Power Chain Reactions 26 | . . . . . . . . . . . . . . . . . . . . . . . . . 2 . . 1 1 . 1 . . 21 Missiles Intercepted 17 | . . . . . . . . . . . . . . . . . . . . . . . . . . . . . . . . . . 17 Alert | -11 -10 -10 -9 -9 -9 -8 -8 -7 -7 -7 -7 -6 -6 -6 -6 -6 -6 -6 -6 -5 -5 -5 -5 -5 -5 -4 -4 -4 -4 -3 -3 -2 -1 -1 ------- Run | Scr Mat Min Mat Min Exi Min Mat Fac Low Low Dat Pro Fac Was Fac Low Low Zio Dee Pro Fac Ext Cet Arc Hub Fac Upp Upp War Pro Res Res Acc Com Peak Influence 14416 | . 284 122 206 66 . 143 391 184 . . . . 123 52 1385 . . . . . 246 481 685 350 4517 2347 . . . . 1176 1350 6263 14416 Initial 4008 | . . 11 47 66 . . 7 109 . . . . . 22 25 . . . . . 88 49 268 194 122 2212 . . . . 205 623 809 4008 Average 3418 | . 100 49 114 36 . 65 176 119 . . . . 35 36 649 . . . . . 91 191 577 327 2279 2261 . . . . 705 724 4274 9615 Maximum Alert Level 5 | . 1 . 1 . . . 1 . . . . . . . 4 . . . . . 1 2 2 1 5 5 . . . . 4 4 5 5 Low Security (%) 30 | 100 81 100 80 100 . 100 62 100 . . . . 100 100 23 . . . . . 89 58 . 6 9 . . . . . . . . . Level 1 7 | . 18 . 19 . . . 37 . . . . . . . 1 . . . . . 10 32 9 93 12 . . . . . 17 . . . Level 2 10 | . . . . . . . . . . . . . . . 46 . . . . . . 8 90 . 1 . . . . . 25 64 . . Level 3 5 | . . . . . . . . . . . . . . . 8 . . . . . . . . . 8 . . . . . 49 20 7 . Level 4 4 | . . . . . . . . . . . . . . . 19 . . . . . . . . . 14 . . . . . 7 15 6 . Level 5 1 | . . . . . . . . . . . . . . . . . . . . . . . . . . 100 . . . . . . . 2 High Security 39 | . . . . . . . . . . . . . . . . . . . . . . . . . 53 . . . . . . . 85 97 Max Security . | . . . . . . . . . . . . . . . . . . . . . . . . . . . . . . . . . . . Sterilizations 2 | . . . . . . . . . . . . . . . . . . . . . . . . . 1 . . . . . . . 1 . Squads Dispatched 166 | . 2 . 2 1 . 1 2 2 . . . . 5 . 18 . . . . . 1 7 . . 30 . . . . 1 10 8 39 37 Investigation 17 | . 1 . 2 1 . . 1 1 . . . . . . 5 . . . . . . 3 . . 1 . . . . . . . 1 1 Extermination 11 | . . . . . . . . 1 . . . . 2 . 3 . . . . . 1 . . . 1 . . . . . 2 . 1 . Reinforcement 21 | . 1 . . . . 1 1 . . . . . 1 . 3 . . . . . . 4 . . 4 . . . . . 3 1 2 . Assault 99 | . . . . . . . . . . . . . . . 4 . . . . . . . . . 24 . . . . 1 2 . 32 36 Garrison 1 | . . . . . . . . . . . . . . . 1 . . . . . . . . . . . . . . . . . . . Intercept 17 | . . . . . . . . . . . . . 2 . 2 . . . . . . . . . . . . . . . 3 7 3 . Construction Impeded 8 | . . . . . . 1 . . . . . . . . . . . . . . . 1 . . 2 . . . . . 2 . 2 . Haulers Reinforced 1 | . . . . . . . . . . . . . . . 1 . . . . . . . . . . . . . . . . . . . Stealth | -11 -10 -10 -9 -9 -9 -8 -8 -7 -7 -7 -7 -6 -6 -6 -6 -6 -6 -6 -6 -5 -5 -5 -5 -5 -5 -4 -4 -4 -4 -3 -3 -2 -1 -1 --------- Run | Scr Mat Min Mat Min Exi Min Mat Fac Low Low Dat Pro Fac Was Fac Low Low Zio Dee Pro Fac Ext Cet Arc Hub Fac Upp Upp War Pro Res Res Acc Com Distress Signals 37 | . 1 . . . . . 2 . . . . . . . 1 . . . . . . 1 2 . 2 1 . . . . 6 7 5 9 Communications Jammed . | . . . . . . . . . . . . . . . . . . . . . . . . . . . . . . . . . . . Distress Signals . | . . . . . . . . . . . . . . . . . . . . . . . . . . . . . . . . . . . Times Spotted 1557 | . 15 7 17 . . 7 23 2 17 13 4 6 6 4 56 4 4 . 76 11 5 38 17 3 223 1 2 10 93 24 54 40 241 534 Peak Tracking Total 85 | . 4 2 8 . . 4 4 2 7 6 4 3 3 2 6 4 3 . 33 4 4 7 6 2 25 5 1 5 19 10 7 7 24 85 Tactical Retreats 68 | . 1 . 2 . . 1 2 . 2 5 . . . . 4 . . . . 2 . 3 1 . 9 2 . 1 3 1 . 1 8 20 Traps | -11 -10 -10 -9 -9 -9 -8 -8 -7 -7 -7 -7 -6 -6 -6 -6 -6 -6 -6 -6 -5 -5 -5 -5 -5 -5 -4 -4 -4 -4 -3 -3 -2 -1 -1 ------- Run | Scr Mat Min Mat Min Exi Min Mat Fac Low Low Dat Pro Fac Was Fac Low Low Zio Dee Pro Fac Ext Cet Arc Hub Fac Upp Upp War Pro Res Res Acc Com Traps Triggered 15 | . . . 3 . . . . . . . . . 1 . 2 . . . . . . 1 . . 2 1 . . . . 2 . 1 2 Indirectly . | . . . . . . . . . . . . . . . . . . . . . . . . . . . . . . . . . . . Trap Hack Attempts . | . . . . . . . . . . . . . . . . . . . . . . . . . . . . . . . . . . . Triggered . | . . . . . . . . . . . . . . . . . . . . . . . . . . . . . . . . . . . Disarmed . | . . . . . . . . . . . . . . . . . . . . . . . . . . . . . . . . . . . Reprogrammed . | . . . . . . . . . . . . . . . . . . . . . . . . . . . . . . . . . . . Reused . | . . . . . . . . . . . . . . . . . . . . . . . . . . . . . . . . . . . Traps Extracted . | . . . . . . . . . . . . . . . . . . . . . . . . . . . . . . . . . . . Installed . | . . . . . . . . . . . . . . . . . . . . . . . . . . . . . . . . . . . Triggered 14 | . . . . . . . . . . 1 . . . . . . . . . . . . . . 1 . . 5 7 . . . . . Machines | -11 -10 -10 -9 -9 -9 -8 -8 -7 -7 -7 -7 -6 -6 -6 -6 -6 -6 -6 -6 -5 -5 -5 -5 -5 -5 -4 -4 -4 -4 -3 -3 -2 -1 -1 ---------- Run | Scr Mat Min Mat Min Exi Min Mat Fac Low Low Dat Pro Fac Was Fac Low Low Zio Dee Pro Fac Ext Cet Arc Hub Fac Upp Upp War Pro Res Res Acc Com Machines Disabled 71 | . . 1 . 1 . 1 1 . . . . . 4 . 4 . 1 . 2 . 2 1 . 3 37 . 1 . . . . 2 5 5 Max in Single Turn 11 | . . 1 . 1 . 1 1 . . . . . 4 . 1 . 1 . 1 . 1 1 . 1 11 . 1 . . . . 1 1 1 Garrison Access 5 | . . . . . . . . . . . . . . . 1 . . . . . 1 . . . 1 . . . . . 1 1 . . Phase Generator 1 | . . . . . . . . . . . . . . . . . . . . . . . . . . . . . . . . . . 1 Network Hub 4 | . . . . . . . . . . . . . . . . . . . . . . . . . 4 . . . . . . . . . Machines Sabotaged . | . . . . . . . . . . . . . . . . . . . . . . . . . . . . . . . . . . . Garrisons Compromised . | . . . . . . . . . . . . . . . . . . . . . . . . . . . . . . . . . . . Overloaded Fab Kills . | . . . . . . . . . . . . . . . . . . . . . . . . . . . . . . . . . . . Fab Network Shutdowns 1 | . . . . . . . . . . . . . . . 1 . . . . . . . . . . . . . . . . . . . Hacking | -11 -10 -10 -9 -9 -9 -8 -8 -7 -7 -7 -7 -6 -6 -6 -6 -6 -6 -6 -6 -5 -5 -5 -5 -5 -5 -4 -4 -4 -4 -3 -3 -2 -1 -1 --------- Run | Scr Mat Min Mat Min Exi Min Mat Fac Low Low Dat Pro Fac Was Fac Low Low Zio Dee Pro Fac Ext Cet Arc Hub Fac Upp Upp War Pro Res Res Acc Com Machines Accessed 76 | . 4 1 5 1 2 . 7 2 1 . 4 . 2 . 12 . . 1 . 1 3 10 1 1 8 . 1 2 5 . 1 . . 1 Terminals 46 | . 3 1 4 . . . 6 2 . . . . 2 . 6 . . . . 1 2 10 1 . 7 . . . . . . . . 1 Fabricators 4 | . . . . . . . . . . . . . . . 4 . . . . . . . . . . . . . . . . . . . Repair Stations . | . . . . . . . . . . . . . . . . . . . . . . . . . . . . . . . . . . . Recycling Units 4 | . 1 . 1 . . . 1 . . . . . . . 1 . . . . . . . . . . . . . . . . . . . Scanalyzers . | . . . . . . . . . . . . . . . . . . . . . . . . . . . . . . . . . . . Garrison Access 4 | . . . . . . . . . . . . . . . 1 . . . . . 1 . . . 1 . . . . . 1 . . . Total Hacks 203 | . 14 1 22 1 2 . 17 3 1 . 29 . 3 . 28 . . 7 . 1 3 21 2 6 22 . 1 6 5 . 2 . . 6 Successful 125 | . 8 1 12 1 2 . 8 1 1 . 29 . 1 . 11 . . 7 . 1 2 10 1 6 9 . 1 6 5 . 1 . . 1 Failed 77 | . 5 . 10 . . . 9 2 . . . . 2 . 17 . . . . . 1 11 1 . 13 . . . . . 1 . . 5 Catastrophic 16 | . . . 2 . . . 1 1 . . . . 1 . 4 . . . . . 1 2 . . 3 . . . . . . . . 1 Database Lockouts 1 | . 1 . . . . . . . . . . . . . . . . . . . . . . . . . . . . . . . . . Manual 83 | . 12 1 15 . 1 . 13 3 . . . . 3 . 10 . . . . . 1 4 . 2 17 . . . 1 . . . . . Terminals 119 | . 12 1 19 . . . 15 3 . . . . 3 . 13 . . . . 1 2 21 2 . 21 . . . . . . . . 6 Fabricators 12 | . . . . . . . . . . . . . . . 12 . . . . . . . . . . . . . . . . . . . Repair Stations . | . . . . . . . . . . . . . . . . . . . . . . . . . . . . . . . . . . . Recycling Units 9 | . 2 . 3 . . . 2 . . . . . . . 2 . . . . . . . . . . . . . . . . . . . Scanalyzers . | . . . . . . . . . . . . . . . . . . . . . . . . . . . . . . . . . . . Garrison Access 5 | . . . . . . . . . . . . . . . 1 . . . . . 1 . . . 1 . . . . . 2 . . . Terminal Hacks 90 | . 4 . 7 1 2 . 3 . 1 . 29 . . . 2 . . 7 . 1 1 8 1 6 4 . 1 6 5 . . . . 1 Record 30 | . . . . . 1 . . . . . 11 . . . . . . . . 1 . . . 6 1 . . 5 5 . . . . . Part Schematic 16 | . . . . . . . . . . . 9 . . . . . . 7 . . . . . . . . . . . . . . . . Robot Schematic 6 | . . . . . . . . . . . 6 . . . . . . . . . . . . . . . . . . . . . . . Robot Analysis 2 | . 1 . 1 . . . . . . . . . . . . . . . . . . . . . . . . . . . . . . . Prototype ID Bank 3 | . . . . . . . . . . . 3 . . . . . . . . . . . . . . . . . . . . . . . Open Door 12 | . . . . 1 . . . . 1 . . . . . . . . . . . 1 6 1 . . . 1 1 . . . . . . Branch Access Points 4 | . 1 . 1 . . . 1 . . . . . . . 1 . . . . . . . . . . . . . . . . . . . Emergency Access Points 1 | . . . 1 . . . . . . . . . . . . . . . . . . . . . . . . . . . . . . . Alert Level 8 | . 1 . 2 . . . 2 . . . . . . . . . . . . . . 1 . . 2 . . . . . . . . . Unreport Threat 4 | . 1 . . . . . . . . . . . . . 1 . . . . . . 1 . . 1 . . . . . . . . . Reinforcement Status 1 | . . . 1 . . . . . . . . . . . . . . . . . . . . . . . . . . . . . . . Recall Investigation 1 | . . . 1 . . . . . . . . . . . . . . . . . . . . . . . . . . . . . . . EX-Prototype ID Bank 1 | . . . . . 1 . . . . . . . . . . . . . . . . . . . . . . . . . . . . . Disengage Seal 1 | . . . . . . . . . . . . . . . . . . . . . . . . . . . . . . . . . . 1 Fabricator Hacks 4 | . . . . . . . . . . . . . . . 4 . . . . . . . . . . . . . . . . . . . Load Schematic 3 | . . . . . . . . . . . . . . . 3 . . . . . . . . . . . . . . . . . . . Build 1 | . . . . . . . . . . . . . . . 1 . . . . . . . . . . . . . . . . . . . Repair Station Hacks . | . . . . . . . . . . . . . . . . . . . . . . . . . . . . . . . . . . . Recycling Unit Hacks 5 | . 1 . 1 . . . 1 . . . . . . . 2 . . . . . . . . . . . . . . . . . . . Retrieve Components 5 | . 1 . 1 . . . 1 . . . . . . . 2 . . . . . . . . . . . . . . . . . . . Scanalyzer . | . . . . . . . . . . . . . . . . . . . . . . . . . . . . . . . . . . . Garrison Access Hacks 4 | . . . . . . . . . . . . . . . 1 . . . . . 1 . . . 1 . . . . . 1 . . . Seal Access 4 | . . . . . . . . . . . . . . . 1 . . . . . 1 . . . 1 . . . . . 1 . . . Unauthorized Hacks 22 | . 3 1 4 . . . 4 1 . . . . 1 . 2 . . . . . . 2 . . 4 . . . . . . . . . Terminals 19 | . 2 1 3 . . . 3 1 . . . . 1 . 2 . . . . . . 2 . . 4 . . . . . . . . . Track 1 | . . 1 . . . . . . . . . . . . . . . . . . . . . . . . . . . . . . . . Botnet 17 | . 2 . 3 . . . 3 . . . . . 1 . 2 . . . . . . 2 . . 4 . . . . . . . . . Sabotage 1 | . . . . . . . . 1 . . . . . . . . . . . . . . . . . . . . . . . . . . Fabricators . | . . . . . . . . . . . . . . . . . . . . . . . . . . . . . . . . . . . Repair Stations . | . . . . . . . . . . . . . . . . . . . . . . . . . . . . . . . . . . . Recycling Units 3 | . 1 . 1 . . . 1 . . . . . . . . . . . . . . . . . . . . . . . . . . . Tunnel 3 | . 1 . 1 . . . 1 . . . . . . . . . . . . . . . . . . . . . . . . . . . Scanalyzers . | . . . . . . . . . . . . . . . . . . . . . . . . . . . . . . . . . . . Garrison Access . | . . . . . . . . . . . . . . . . . . . . . . . . . . . . . . . . . . . Data Cores Recovered . | . . . . . . . . . . . . . . . . . . . . . . . . . . . . . . . . . . . Used . | . . . . . . . . . . . . . . . . . . . . . . . . . . . . . . . . . . . Hacking Detections 44 | . 3 . 4 . . . 6 2 . . . . 2 . 10 . . . . 1 1 6 1 . 7 . . . . . . . . 1 Full Trace Events 9 | . . . 1 . . . . . . . . . . . 5 . . . . . . 3 . . . . . . . . . . . . Feedback Events 1 | . . . . . . . . . . . . . . . 1 . . . . . . . . . . . . . . . . . . . Corruption 1 | . . . . . . . . . . . . . . . 1 . . . . . . . . . . . . . . . . . . . Feedback Blocked . | . . . . . . . . . . . . . . . . . . . . . . . . . . . . . . . . . . . Robot Schematics Acquired 6 | . . . . . . . . . . . 6 . . . . . . . . . . . . . . . . . . . . . . . Robots Built . | . . . . . . . . . . . . . . . . . . . . . . . . . . . . . . . . . . . Matter . | . . . . . . . . . . . . . . . . . . . . . . . . . . . . . . . . . . . Time . | . . . . . . . . . . . . . . . . . . . . . . . . . . . . . . . . . . . Total Robot Build Rating . | . . . . . . . . . . . . . . . . . . . . . . . . . . . . . . . . . . . Part Schematics Acquired 16 | . . . . . . . . . . . 9 . . . . . . 7 . . . . . . . . . . . . . . . . Parts Built 1 | . . . . . . . . . . . . . . . 1 . . . . . . . . . . . . . . . . . . . Matter 285 | . . . . . . . . . . . . . . . 285 . . . . . . . . . . . . . . . . . . . Time 50 | . . . . . . . . . . . . . . . 50 . . . . . . . . . . . . . . . . . . . Total Part Build Rating 5 | . . . . . . . . . . . . . . . 5 . . . . . . . . . . . . . . . . . . . Parts Repaired . | . . . . . . . . . . . . . . . . . . . . . . . . . . . . . . . . . . . Time . | . . . . . . . . . . . . . . . . . . . . . . . . . . . . . . . . . . . Parts Recycled . | . . . . . . . . . . . . . . . . . . . . . . . . . . . . . . . . . . . Recycled Matter . | . . . . . . . . . . . . . . . . . . . . . . . . . . . . . . . . . . . Retrieved Matter . | . . . . . . . . . . . . . . . . . . . . . . . . . . . . . . . . . . . Retrieved Components 22 | . 10 . 6 . . . 3 . . . . . . . 3 . . . . . . . . . . . . . . . . . . . Parts Scanalyzed . | . . . . . . . . . . . . . . . . . . . . . . . . . . . . . . . . . . . Part Schematics Acquired . | . . . . . . . . . . . . . . . . . . . . . . . . . . . . . . . . . . . Parts Damaged . | . . . . . . . . . . . . . . . . . . . . . . . . . . . . . . . . . . . Bothacking | -11 -10 -10 -9 -9 -9 -8 -8 -7 -7 -7 -7 -6 -6 -6 -6 -6 -6 -6 -6 -5 -5 -5 -5 -5 -5 -4 -4 -4 -4 -3 -3 -2 -1 -1 ------------ Run | Scr Mat Min Mat Min Exi Min Mat Fac Low Low Dat Pro Fac Was Fac Low Low Zio Dee Pro Fac Ext Cet Arc Hub Fac Upp Upp War Pro Res Res Acc Com Used RIF Installer . | . . . . . . . . . . . . . . . . . . . . . . . . . . . . . . . . . . . Robots Hacked 2 | . . . . . . . . . . . . . . . . . . . . . . . . . . . . . . . . 2 . . Non-combat 1 | . . . . . . . . . . . . . . . . . . . . . . . . . . . . . . . . 1 . . Combat 1 | . . . . . . . . . . . . . . . . . . . . . . . . . . . . . . . . 1 . . Robot Hacks Applied 2 | . . . . . . . . . . . . . . . . . . . . . . . . . . . . . . . . 2 . . parse_system 2 | . . . . . . . . . . . . . . . . . . . . . . . . . . . . . . . . 2 . . Relay Couplers Released 5 | . . . . . . . . . . . . . . . 2 . . . . . . . . . . . . . . . 2 1 . . Machine Destruction 1 | . . . . . . . . . . . . . . . . . . . . . . . . . . . . . . . . 1 . . Programmers 4 | . . . . . . . . . . . . . . . 2 . . . . . . . . . . . . . . . 2 . . . Robots Rewired 13 | . . . . . . . . . . . . . . . . . 3 . . . . 10 . . . . . . . . . . . . Allies Hacked . | . . . . . . . . . . . . . . . . . . . . . . . . . . . . . . . . . . . Hacks Repelled . | . . . . . . . . . . . . . . . . . . . . . . . . . . . . . . . . . . . Allies | -11 -10 -10 -9 -9 -9 -8 -8 -7 -7 -7 -7 -6 -6 -6 -6 -6 -6 -6 -6 -5 -5 -5 -5 -5 -5 -4 -4 -4 -4 -3 -3 -2 -1 -1 -------- Run | Scr Mat Min Mat Min Exi Min Mat Fac Low Low Dat Pro Fac Was Fac Low Low Zio Dee Pro Fac Ext Cet Arc Hub Fac Upp Upp War Pro Res Res Acc Com Total Allies 43 | . . 2 . . . . . . . . . . . 18 . . 3 3 . . . 17 . . . . . . . . . . . . Largest Group 18 | . . 2 2 . . . . . . . . . . 18 14 . 3 6 6 . . 6 6 1 . . . . . . . . . . Highest-Rated Group 650 | . . 47 47 . . . . . . . . . . 650 525 . 93 183 183 . . 321 321 150 . . . . . . . . . . Highest-Rated Ally 156 | . . 31 31 . . . . . . . . . . 50 50 . 31 31 31 . . 156 156 150 . . . . . . . . . . Total Orders . | . . . . . . . . . . . . . . . . . . . . . . . . . . . . . . . . . . . Ally Attacks 682 | . . 4 . . . . . . . . . . . 82 73 . . . 390 1 . 70 62 . . . . . . . . . . . Total Damage 15139 | . . 40 . . . . . . . . . . . 2969 1989 . . . 6749 21 . 1753 1618 . . . . . . . . . . . Kills 74 | . . 1 . . . . . . . . . . . 8 15 . . . 33 . . 8 9 . . . . . . . . . . . Allies Corrupted . | . . . . . . . . . . . . . . . . . . . . . . . . . . . . . . . . . . . Allies Melted . | . . . . . . . . . . . . . . . . . . . . . . . . . . . . . . . . . . . Intel | -11 -10 -10 -9 -9 -9 -8 -8 -7 -7 -7 -7 -6 -6 -6 -6 -6 -6 -6 -6 -5 -5 -5 -5 -5 -5 -4 -4 -4 -4 -3 -3 -2 -1 -1 ------- Run | Scr Mat Min Mat Min Exi Min Mat Fac Low Low Dat Pro Fac Was Fac Low Low Zio Dee Pro Fac Ext Cet Arc Hub Fac Upp Upp War Pro Res Res Acc Com Robot Analysis Total 117 | . 1 . 1 . . . . . . . 115 . . . . . . . . . . . . . . . . . . . . . . . Derelict Logs Recovered 11 | . . 2 . 1 . . . . 1 1 . 1 . . . 1 1 . . 1 . . . . . . 1 1 . . . . . . Drone Launches . | . . . . . . . . . . . . . . . . . . . . . . . . . . . . . . . . . . . Drone Recoveries . | . . . . . . . . . . . . . . . . . . . . . . . . . . . . . . . . . . . Exploration | -11 -10 -10 -9 -9 -9 -8 -8 -7 -7 -7 -7 -6 -6 -6 -6 -6 -6 -6 -6 -5 -5 -5 -5 -5 -5 -4 -4 -4 -4 -3 -3 -2 -1 -1 ------------- Run | Scr Mat Min Mat Min Exi Min Mat Fac Low Low Dat Pro Fac Was Fac Low Low Zio Dee Pro Fac Ext Cet Arc Hub Fac Upp Upp War Pro Res Res Acc Com Turns Passed 38790 | 5 467 1163 716 734 326 957 846 348 914 1257 124 665 1011 211 2239 606 668 1872 2026 634 908 1040 429 263 2697 225 639 768 1124 682 1292 1368 2354 7212 Spaces Moved 20625 | 5 283 679 311 575 271 657 504 236 719 965 102 499 824 151 1066 335 368 1180 917 340 450 488 208 146 943 134 383 458 465 343 545 636 934 3505 Core 111 | . . . 5 . . . . . . . . . . . . . . 105 1 . . . . . . . . . . . . . . . Treads 14644 | . . 647 178 . . . . . . . . . . 82 1066 335 368 1075 915 340 450 488 208 146 943 134 383 458 465 343 545 636 934 3505 Legs 2666 | 5 283 32 128 575 271 657 504 211 . . . . . . . . . . . . . . . . . . . . . . . . . . Wheels 2928 | . . . . . . . . 25 719 965 102 499 618 . . . . . . . . . . . . . . . . . . . . . Hover 276 | . . . . . . . . . . . . . 206 69 . . . . 1 . . . . . . . . . . . . . . . Flight . | . . . . . . . . . . . . . . . . . . . . . . . . . . . . . . . . . . . Fastest Speed 50 | 120 120 120 50 120 120 120 120 110 110 110 110 110 55 60 160 160 160 50 160 160 160 160 160 160 160 160 160 160 160 160 160 145 135 135 Average Speed 141 | 120 120 158 153 120 120 120 120 134 110 110 110 110 97 114 160 160 160 150 160 160 160 160 160 160 160 160 160 160 160 160 160 157 141 135 Slowest Speed 625 | 120 120 160 180 120 120 120 120 150 120 110 110 110 126 160 160 160 160 350 625 160 180 160 160 160 160 160 160 160 180 160 160 180 145 135 Overloaded Moves . | . . . . . . . . . . . . . . . . . . . . . . . . . . . . . . . . . . . Propulsion Burnouts . | . . . . . . . . . . . . . . . . . . . . . . . . . . . . . . . . . . . Robots Hopped . | . . . . . . . . . . . . . . . . . . . . . . . . . . . . . . . . . . . Cave-ins Triggered 3 | . . . . . . . . . . . . . . . . . . . . . . . . . . . . . . . . . 1 2 Exploration Rate (%) 55 | 3 53 92 26 99 70 98 47 7 89 90 77 64 15 81 25 52 61 83 80 63 12 75 82 87 66 6 61 59 46 51 18 15 12 64 Regions Visited 34 Branch Regions 22 Pre-discovered Areas 29 | . 1 . 1 . 1 . 1 . 1 . 22 . . . . . . 2 . . . . . . . . . . . . . . . . Known Exits Taken 31 | . 1 1 1 1 1 1 1 1 1 1 1 1 . . 1 1 1 1 1 1 1 1 1 1 1 1 1 1 1 1 1 1 1 . Unknown Exits Taken 1 | 1 . . . . . . . . . . . . . . . . . . . . . . . . . . . . . . . . . . Scrap Searched 30 | . . 3 . 4 . 2 . . 3 6 . 1 . . . 1 2 4 . . . . . . . . 2 1 . 1 . . . . Spaces Dug 39 | . . . . . . . . . . . . . . 1 . . . 1 2 1 30 . . . . . . . . . . . 4 . Terrain Destroyed 2504 | . . . . . . 16 . . 36 . . . 43 1 . 12 . 1 10 10 82 31 6 3 746 . . 21 53 9 8 122 460 834 Melee 2 | . . . . . . . . . . . . . . 1 . . . 1 . . . . . . . . . . . . . . . . Projectile 1284 | . . . . . . . . . . . . . . . . . . . 10 10 42 20 6 3 46 . . . 38 9 2 89 415 594 AOE 1218 | . . . . . . 16 . . 36 . . . 43 . . 12 . . . . 40 11 . . 700 . . 21 15 . 6 33 45 240 Terrain Rammed . | . . . . . . . . . . . . . . . . . . . . . . . . . . . . . . . . . . . Walls Destroyed . | . . . . . . . . . . . . . . . . . . . . . . . . . . . . . . . . . . . Machines Disabled . | . . . . . . . . . . . . . . . . . . . . . . . . . . . . . . . . . . . Actions | -11 -10 -10 -9 -9 -9 -8 -8 -7 -7 -7 -7 -6 -6 -6 -6 -6 -6 -6 -6 -5 -5 -5 -5 -5 -5 -4 -4 -4 -4 -3 -3 -2 -1 -1 --------- Run | Scr Mat Min Mat Min Exi Min Mat Fac Low Low Dat Pro Fac Was Fac Low Low Zio Dee Pro Fac Ext Cet Arc Hub Fac Upp Upp War Pro Res Res Acc Com Total 27044 | 4 349 724 475 616 272 747 667 252 792 1151 107 599 992 177 1404 369 425 1262 1206 385 586 660 272 160 1869 139 404 482 738 446 798 884 1452 5179 Wait 2548 | . 11 7 64 26 . 16 73 4 19 179 . 92 137 1 151 11 5 23 67 16 83 13 6 3 475 . 2 6 57 21 31 80 103 766 Move 20589 | 4 282 678 310 574 270 656 503 235 718 964 101 498 824 150 1065 334 367 1179 916 339 449 487 207 145 942 133 382 457 464 342 544 635 932 3503 Hop . | . . . . . . . . . . . . . . . . . . . . . . . . . . . . . . . . . . . Pick Up 58 | . 3 4 . 5 . . 3 . . . . . . 1 4 1 . 1 4 . 2 1 . 1 4 . . . 6 . 4 4 3 7 Fast Attach 260 | . 4 1 23 1 1 1 14 3 4 1 . . 10 5 7 . . 22 18 3 9 2 8 . 12 . 2 . 6 . 11 17 13 62 Attach 21 | . 2 . . . . . . . . . . . . . . . . . . . 1 1 . 1 3 . . . 2 . 1 3 1 6 Detach 25 | . 1 . 1 . 1 . . . 1 . . . . 1 1 . . . 2 . 1 . . . 4 . . . 1 . 1 2 . 8 Swap 114 | . . 3 5 1 . 4 2 . 4 1 1 1 . 3 2 3 . 2 5 . . 2 . . 3 . . 3 9 . 1 10 7 42 Drop 270 | . 4 5 14 6 . 3 14 4 1 2 . . 7 9 10 1 . 23 23 1 10 2 8 1 13 . 2 . 12 . 13 16 11 55 Fire 1633 | . 34 23 38 3 . 40 43 6 21 4 . 6 14 5 78 18 9 . 123 18 29 35 18 9 260 6 5 10 87 36 114 78 169 294 Melee 85 | . . . . . . . . . . . 5 . . 1 . . . 12 . . . . . . . . . . . . . . 21 46 Ram . | . . . . . . . . . . . . . . . . . . . . . . . . . . . . . . . . . . . Kick 1 | . . . 1 . . . . . . . . . . . . . . . . . . . . . . . . . . . . . . . Crush 34 | . . . . . . . . . . . . . . . 9 . . . . . . . . . 13 . . . . . 4 1 4 3 Escape Stasis 19 | . . . . . . . . . . . . . . . . . . . . . . . . . . . . . . . . . 13 6 Rewire 143 | . . . . . . . . . . . . . . . . . 44 . . . . 99 . . . . . . . . . . . . Trap . | . . . . . . . . . . . . . . . . . . . . . . . . . . . . . . . . . . . Miscellaneous 1244 | . 8 3 19 . . 27 15 . 24 . . 2 . 1 77 1 . . 48 8 2 18 25 . 140 . 11 6 94 47 74 38 175 381 Route ------- -11/Scrapyard -10/Materials (discovered 2 exits: *Mat / *Min) -10/Mines -9/Materials (discovered 2 exits: *Min x2) -9/Mines (discovered 3 exits: *Mat x2 / *Exi) -9/Exiles (discovered 2 exits: *Min x2) -8/Mines (discovered 2 exits: *Mat x2) -8/Materials -7/Factory (discovered 2 exits: Sto / *Low) -7/Lower Caves -7/Lower Caves (discovered 2 exits: *Fac / *Dat) -7/Data Miner -6/Proximity Caves -6/Factory -6/Waste -6/Factory (discovered 2 exits: *Low x2) -6/Lower Caves -6/Lower Caves -6/Zion (discovered 2 exits: *Dee / [*Pro]) -6/Deep Caves -5/Proximity Caves -5/Factory (discovered 2 exits: *Ext x2) -5/Extension (discovered 2 exits: *Fac / *Cet) -5/Cetus (discovered 2 exits: *Fac / *Arc) -5/Archives (discovered 2 exits: *Fac / *Hub) -5/Hub_04(d) (discovered 2 exits: *Fac x2) -4/Factory -4/Upper Caves -4/Upper Caves (discovered 2 exits: *Res / *War) -4/Warlord -3/Proximity Caves -3/Research -2/Research -1/Access -1/Command History --------- Turn | Location | Event 1 | -11/Scrapyard | Discovered new exit (range 2) 6 | -11/Scrapyard | Entered Materials 89 | -10/Materials | Discovered new exit (range 7) 111 | -10/Materials | Upgraded with Weapon slot (x1) 313 | -10/Materials | Build established: Mutant 377 | -10/Materials | Central database locked down 377 | -10/Materials | Identified exit to Mines 454 | -10/Materials | Upgraded with Utility slot (x1) 473 | -10/Materials | Entered Mines 473 | -10/Mines | Reached level 2 509 | -10/Mines | Joined a pair of Derelicts in attacking an 0b10 outpost 539 | -10/Mines | Upgraded with Utility slot (x1) 826 | -10/Mines | Build established: Scavenger-Mutant 1417 | -10/Mines | Discovered new exit (range 9) 1631 | -10/Mines | Identified exit to Materials 1636 | -10/Mines | Entered Materials 1636 | -9/Materials | Accompanied by 2 allies 1637 | -9/Materials | Identified exit to Mines 1638 | -9/Materials | Reached level 3 1641 | -9/Materials | Led the pair of lost Derelicts to an unsafe place 1684 | -9/Materials | Core integrity fell below 50% 1693 | -9/Materials | Core integrity fell below 20% 1716 | -9/Materials | Reached level 4 1775 | -9/Materials | Upgraded with Utility slot (x1) 1868 | -9/Materials | Upgraded with Utility slot (x1) 1874 | -9/Materials | Upgraded with Utility slot (x1) 2166 | -9/Materials | Upgraded with Propulsion slot (x1) 2212 | -9/Materials | Build established: Scavenger-Skirmisher 2277 | -9/Materials | Reached level 5 2338 | -9/Materials | Upgraded with Propulsion slot (x1) 2352 | -9/Materials | Entered Mines 2352 | -9/Mines | Discovered new exit (range 12) 2390 | -9/Mines | Discovered new exit (range 12) 2393 | -9/Mines | Received a Rocket Launcher from a helpful Derelict 2418 | -9/Mines | Identified exit to Materials 2547 | -9/Mines | A weapon hastily lodged in a ceiling crevice suddenly fell to the ground 2598 | -9/Mines | Deemed a non-threat by the Exiles lab entrance 2598 | -9/Mines | Discovered new exit (range 5) 2602 | -9/Mines | Identified exit to Exiles 2619 | -9/Mines | Build established: Skirmisher 2763 | -9/Mines | Met a Derelict shopkeep closing up shop 2940 | -9/Mines | Learned Materials trap positions 3086 | -9/Mines | Entered Exiles 3104 | -9/Exiles | Discovered new exit (range 15) 3119 | -9/Exiles | Met 8R-AWN 3136 | -9/Exiles | Met EX-HEX 3169 | -9/Exiles | Met EX-BIN 3182 | -9/Exiles | Aligned with FarCom system 3184 | -9/Exiles | Given EX-Vault access code 3211 | -9/Exiles | Opened EX-Vault 3221 | -9/Exiles | Found Superbattery 3247 | -9/Exiles | Warned to stay clear of 0b10 Research branches 3283 | -9/Exiles | Met EX-DEC 3288 | -9/Exiles | Learned location of Zion (-6) 3403 | -9/Exiles | Discovered new exit (range 10) 3411 | -9/Exiles | Identified exit to Mines 3412 | -9/Exiles | Left Exiles lab with Superbattery 3412 | -9/Exiles | Entered Mines 3414 | -8/Mines | Reached level 6 3784 | -8/Mines | Discovered exit to Materials (range 6) 3940 | -8/Mines | Build established: Scavenger-Skirmisher 4034 | -8/Mines | Discovered exit to Materials (range 10) 4369 | -8/Mines | Entered Materials 4370 | -8/Materials | Loaded intel: 23 trap records 4371 | -8/Materials | Reached level 7 4413 | -8/Materials | Reached level 8 4532 | -8/Materials | Upgraded with Weapon slot (x2) 4811 | -8/Materials | Upgraded with Utility slot (x1) 4910 | -8/Materials | Core integrity fell below 50% 4968 | -8/Materials | Reached level 9 5183 | -8/Materials | Discovered new exit (range 14) 5203 | -8/Materials | Identified exit to Factory 5215 | -8/Materials | Entered Factory 5216 | -7/Factory | Identified exit to Storage 5217 | -7/Factory | Reached level 10 5491 | -7/Factory | Discovered new exit (range 13) 5516 | -7/Factory | Identified exit to Lower Caves 5563 | -7/Factory | Entered Lower Caves 5565 | -7/Lower Caves | Attracted the attention of an 0b10 checkpoint 5565 | -7/Lower Caves | Reached level 11 5600 | -7/Lower Caves | Destroyed 7 combat bots 5938 | -7/Lower Caves | Upgraded with Power slot (x1) 5965 | -7/Lower Caves | Upgraded with Utility slot (x1) 5984 | -7/Lower Caves | Learned location of Extension (-5) 6114 | -7/Lower Caves | Spotted B-75 Beast 6366 | -7/Lower Caves | Reached level 12 6467 | -7/Lower Caves | Discovered new exit (range 6) 6475 | -7/Lower Caves | Identified exit to Lower Caves 6477 | -7/Lower Caves | Entered another Lower Caves area 6629 | -7/Lower Caves | Discovered new exit (range 3) 7032 | -7/Lower Caves | Learned 4 Factory zone layouts 7560 | -7/Lower Caves | Reached level 13 7644 | -7/Lower Caves | Discovered new exit (range 7) 7650 | -7/Lower Caves | Identified exit to Data Miner 7734 | -7/Lower Caves | Entered Data Miner 7734 | -7/Data Miner | Discovered new exit (range 7) 7755 | -7/Data Miner | Met Data Miner 7775 | -7/Data Miner | Learned location of Section 7 (-2) 7775 | -7/Data Miner | Acquired the access code to Warlord's prototype stash 7794 | -7/Data Miner | Received God Mode back door access code from Data Miner 7819 | -7/Data Miner | Reached level 14 7819 | -7/Data Miner | Interfaced with the Data Conduit 7856 | -7/Data Miner | Core integrity fell below 50% 7857 | -7/Data Miner | Identified exit to Proximity Caves 7858 | -7/Data Miner | Entered Proximity Caves 7860 | -6/Proximity Caves | Reached level 15 8149 | -6/Proximity Caves | Learned Factory security intel 8246 | -6/Proximity Caves | Reached level 16 8426 | -6/Proximity Caves | Discovered new exit (range 13) 8508 | -6/Proximity Caves | Received a Behemoth hack from an annoying Tinkerer 8522 | -6/Proximity Caves | Identified exit to Factory 8523 | -6/Proximity Caves | Entered Factory 8524 | -6/Factory | Identified exit to Factory 8524 | -6/Factory | Core integrity fell below 50% 8525 | -6/Factory | Reached level 17 8526 | -6/Factory | Loaded intel: 243 machine locations 8904 | -6/Factory | Upgraded with Utility slot (x1) 8931 | -6/Factory | Upgraded with Propulsion slot (x1) 9212 | -6/Factory | Intercept squad dispatched 9232 | -6/Factory | Spotted Tracker 9245 | -6/Factory | Destroyed Tracker 9319 | -6/Factory | Spotted Combat Programmer 9327 | -6/Factory | Destroyed Combat Programmer 9534 | -6/Factory | Sucked down chute 9534 | -6/Factory | Entered Waste 9547 | -6/Waste | Spotted C-40 Crusher 9549 | -6/Waste | EMP discharged 9549 | -6/Waste | System corruption reached 10% 9560 | -6/Waste | Spotted C-40 Crusher 9570 | -6/Waste | Met Warlord forces unprepared to attack 9573 | -6/Waste | Allies destroyed C-40 Crusher 9573 | -6/Waste | Spotted C-40 Crusher 9574 | -6/Waste | Allies destroyed C-40 Crusher 9577 | -6/Waste | Spotted C-40 Crusher 9582 | -6/Waste | Allies destroyed C-40 Crusher 9587 | -6/Waste | Allies destroyed C-40 Crusher 9590 | -6/Waste | Spotted C-40 Crusher 9592 | -6/Waste | Destroyed C-40 Crusher 9614 | -6/Waste | Found Damper Plating 9649 | -6/Waste | EMP discharged 9652 | -6/Waste | Spotted C-40 Crusher 9658 | -6/Waste | Allies destroyed C-40 Crusher 9661 | -6/Waste | Found Damper Plating 9723 | -6/Waste | Discovered new exit (range 12) 9743 | -6/Waste | Identified exit to Factory 9745 | -6/Waste | Entered Factory 9745 | -6/Factory | Accompanied by 14 allies 9746 | -6/Factory | Loaded intel: 326 machine locations 10177 | -6/Factory | Reached level 18 10289 | -6/Factory | Found Exp. Targeting Computer 10445 | -6/Factory | First assault squad dispatched 10551 | -6/Factory | Reached level 19 10685 | -6/Factory | Intercept squad dispatched 10696 | -6/Factory | Spotted Tracker 10708 | -6/Factory | Destroyed Tracker 10720 | -6/Factory | Found Exp. Phase Shifter 10733 | -6/Factory | Found Prototype Energy Gun 10733 | -6/Factory | Identified Immobilizer 10746 | -6/Factory | Spotted Combat Programmer 10751 | -6/Factory | Destroyed Combat Programmer 10853 | -6/Factory | Found Exp. Targeting Computer 11029 | -6/Factory | Build established: Scavenger-Tank 11104 | -6/Factory | Fabricated Exp. Sensor Array (x1) 11345 | -6/Factory | Local fabrication network quarantined 11380 | -6/Factory | Garrison activated, responded to threat 11431 | -6/Factory | Identified exit to Lower Caves 11709 | -6/Factory | Reached level 20 11984 | -6/Factory | Entered Lower Caves 12197 | -6/Lower Caves | Learned location of 1 exit from Factory 12579 | -6/Lower Caves | Discovered new exit (range 7) 12588 | -6/Lower Caves | Identified exit to Lower Caves 12590 | -6/Lower Caves | Entered another Lower Caves area 12673 | -6/Lower Caves | Encountered a Warlord checkpoint 12833 | -6/Lower Caves | Attracted the attention of an 0b10 checkpoint 13145 | -6/Lower Caves | Discovered new exit (range 10) 13160 | -6/Lower Caves | Attacked by a delusional Derelict stockpiling Unaware 13257 | -6/Lower Caves | Identified exit to Zion 13258 | -6/Lower Caves | Entered Zion 13258 | -6/Zion | Accompanied by 3 allies 13286 | -6/Zion | Gained Derelict followers 13371 | -6/Zion | Discovered new exit (range 12) 13444 | -6/Zion | System corruption cleaned by Quarantine Array 13847 | -6/Zion | Learned Factory emergency access door positions 13866 | -6/Zion | Given the Hacking Drone Bay 14426 | -6/Zion | Learned Factory scanalyzer intel 14985 | -6/Zion | Discovered new exit (range 3) 15120 | -6/Zion | Identified exit to Deep Caves 15120 | -6/Zion | Saw the warning signs outside the Deep Caves entrance 15130 | -6/Zion | Entered Deep Caves 15130 | -6/Deep Caves | Accompanied by 6 allies 15267 | -6/Deep Caves | Attacked by Z-Imprinter 15272 | -6/Deep Caves | Allies destroyed Z-Imprinter 15318 | -6/Deep Caves | Found Prototype Device 15318 | -6/Deep Caves | Identified Zio. Metafield Generator 15440 | -6/Deep Caves | Z-Facility disabled 15642 | -6/Deep Caves | Spotted as-63952 15643 | -6/Deep Caves | Exposed GOLEM chamber 15657 | -6/Deep Caves | Allies destroyed as-63952 15688 | -6/Deep Caves | Triggered Deep Caves wall 15692 | -6/Deep Caves | Spotted AS-71317 15725 | -6/Deep Caves | Allies destroyed AS-71317 15742 | -6/Deep Caves | Spotted AS-39197 15748 | -6/Deep Caves | Allies destroyed AS-39197 15773 | -6/Deep Caves | Found GOLEM Unit 15778 | -6/Deep Caves | Destroyed 43 combat bots 15798 | -6/Deep Caves | Spotted as-35962 15860 | -6/Deep Caves | Allies destroyed as-35962 15990 | -6/Deep Caves | Destroyed 13 combat bots 16281 | -6/Deep Caves | Found Prototype Protection 16281 | -6/Deep Caves | Identified Zio. Weapon Casing 16762 | -6/Deep Caves | Found GOLEM Unit 17048 | -6/Deep Caves | Build established: Scavenger-Mutant 17140 | -6/Deep Caves | Discovered new exit (range 7) 17153 | -6/Deep Caves | Identified exit to Proximity Caves 17156 | -6/Deep Caves | Entered Proximity Caves 17156 | -5/Proximity Caves | Accompanied by 1 ally 17158 | -5/Proximity Caves | Reached level 21 17304 | -5/Proximity Caves | Upgraded with Utility slot (x1) 17459 | -5/Proximity Caves | Build established: Scavenger-Tank 17539 | -5/Proximity Caves | Found Alien Artifact 17539 | -5/Proximity Caves | Identified Core Expander 17539 | -5/Proximity Caves | Installed Core Expander, added new Weapon slot 17606 | -5/Proximity Caves | Attracted the attention of an 0b10 checkpoint 17781 | -5/Proximity Caves | Learned location of 1 exit from Factory 17781 | -5/Proximity Caves | Discovered exit to Factory (range 7) 17790 | -5/Proximity Caves | Entered Factory 17791 | -5/Factory | Identified exit to Extension 17792 | -5/Factory | Reached level 22 17793 | -5/Factory | Loaded intel: 229 machine locations 17794 | -5/Factory | Loaded intel: 4 scanalyzer locations 18698 | -5/Factory | Entered Extension 18699 | -5/Extension | Loaded intel: 35 machine locations 18740 | -5/Extension | Rescued a captive Derelict 18740 | -5/Extension | Rescued a captive Derelict 18886 | -5/Extension | Rescued a captive Derelict 19011 | -5/Extension | Rescued a captive Derelict 19200 | -5/Extension | Spotted B-75 Beast 19216 | -5/Extension | Destroyed B-75 Beast 19235 | -5/Extension | Spotted B-75 Beast 19244 | -5/Extension | Destroyed B-75 Beast 19244 | -5/Extension | Reached level 23 19254 | -5/Extension | Upgraded with Utility slot (x1) 19327 | -5/Extension | Rescued a captive Derelict 19365 | -5/Extension | Rescued A7 19483 | -5/Extension | Rescued a captive Derelict 19705 | -5/Extension | Discovered new exit (range 10) 19707 | -5/Extension | Discovered new exit (range 6) 19735 | -5/Extension | Identified exit to Cetus 19738 | -5/Extension | Entered Cetus 19738 | -5/Cetus | Accompanied by 6 allies (A7) 19739 | -5/Cetus | Loaded intel: 24 machine locations 19743 | -5/Cetus | Acquired a Cetus Manufacturing Module code from A7 19759 | -5/Cetus | Spotted Cetus Guard 19759 | -5/Cetus | Spotted Cetus Guard 19761 | -5/Cetus | Spotted Cetus Guard 19761 | -5/Cetus | Spotted Cetus Guard 19765 | -5/Cetus | Destroyed Cetus Guard 19770 | -5/Cetus | Allies destroyed Cetus Guard 19772 | -5/Cetus | Destroyed Cetus Guard 19777 | -5/Cetus | Destroyed Cetus Guard 19977 | -5/Cetus | Escorted A7 to Cetus Mainframe 19998 | -5/Cetus | Discovered new exit (range 15) 20028 | -5/Cetus | Spotted Cetus Guard 20029 | -5/Cetus | Spotted Cetus Guard 20031 | -5/Cetus | Destroyed Cetus Guard 20032 | -5/Cetus | Spotted Cetus Guard 20043 | -5/Cetus | Destroyed Cetus Guard 20043 | -5/Cetus | Spotted Cetus Guard 20045 | -5/Cetus | Destroyed Cetus Guard 20051 | -5/Cetus | Allies destroyed Cetus Guard 20066 | -5/Cetus | Discovered new exit (range 16) 20075 | -5/Cetus | Met Revision 17 20165 | -5/Cetus | Identified exit to Archives 20167 | -5/Cetus | Entered Archives 20167 | -5/Archives | Accompanied by 1 ally (A7) 20168 | -5/Archives | Loaded intel: 8 machine locations 20169 | -5/Archives | Reached level 24 20172 | -5/Archives | Received a hacking code to weaken MAIN.C 20262 | -5/Archives | Unable to access archive contents 20262 | -5/Archives | Unable to access archive contents 20272 | -5/Archives | Discovered new exit (range 15) 20299 | -5/Archives | Identified exit to Factory 20345 | -5/Archives | Unable to access archive contents 20361 | -5/Archives | Unable to access archive contents 20387 | -5/Archives | Unable to access archive contents 20389 | -5/Archives | Unable to access archive contents 20397 | -5/Archives | Discovered new exit (range 14) 20416 | -5/Archives | Identified exit to Hub_04(d) 20430 | -5/Archives | Entered Hub_04(d) 20431 | -5/Hub_04(d) | Loaded intel: 91 machine locations 20726 | -5/Hub_04(d) | Spotted B-75 Beast 20734 | -5/Hub_04(d) | Destroyed B-75 Beast 21002 | -5/Hub_04(d) | Network Hub disabled 21017 | -5/Hub_04(d) | Spotted Lightning 21025 | -5/Hub_04(d) | Discovered exit to Factory (range 13) 21030 | -5/Hub_04(d) | First assault squad dispatched 21036 | -5/Hub_04(d) | Spotted Lightning 21036 | -5/Hub_04(d) | Spotted Lightning 21038 | -5/Hub_04(d) | Destroyed Lightning 21040 | -5/Hub_04(d) | Spotted Lightning 21044 | -5/Hub_04(d) | Destroyed Lightning 21046 | -5/Hub_04(d) | Spotted Lightning 21047 | -5/Hub_04(d) | Spotted Lightning 21055 | -5/Hub_04(d) | Destroyed Lightning 21058 | -5/Hub_04(d) | Destroyed Lightning 21069 | -5/Hub_04(d) | Destroyed Lightning 21090 | -5/Hub_04(d) | Destroyed 8 combat bots 21096 | -5/Hub_04(d) | Found Prototype Energy Cannon 21096 | -5/Hub_04(d) | Identified EMDS 21136 | -5/Hub_04(d) | Destroyed Lightning 21198 | -5/Hub_04(d) | Destroyed 13 combat bots 21355 | -5/Hub_04(d) | Network Hub disabled 21453 | -5/Hub_04(d) | Build established: Scavenger-Skirmisher 21611 | -5/Hub_04(d) | Spotted Lightning 21626 | -5/Hub_04(d) | Destroyed Lightning 21627 | -5/Hub_04(d) | Spotted Lightning 21630 | -5/Hub_04(d) | Spotted Lightning 21634 | -5/Hub_04(d) | Destroyed Lightning 21668 | -5/Hub_04(d) | Reached level 25 21675 | -5/Hub_04(d) | High security lockdown imminent 21683 | -5/Hub_04(d) | Destroyed Lightning 21704 | -5/Hub_04(d) | Destroyed 10 combat bots 21750 | -5/Hub_04(d) | Network Hub disabled 21755 | -5/Hub_04(d) | High security lockdown engaged 21862 | -5/Hub_04(d) | Destroyed 17 combat bots 21992 | -5/Hub_04(d) | Destroyed 13 combat bots 22063 | -5/Hub_04(d) | Core integrity fell below 50% 22072 | -5/Hub_04(d) | Core integrity fell below 20% 22114 | -5/Hub_04(d) | Destroyed 22 combat bots 22317 | -5/Hub_04(d) | Destroyed 15 combat bots 22359 | -5/Hub_04(d) | Sterilization system engaged 22359 | -5/Hub_04(d) | Non-combat units ordered to evacuate 22375 | -5/Hub_04(d) | Destroyed 9 combat bots 22459 | -5/Hub_04(d) | Combat units ordered to evacuate 22484 | -5/Hub_04(d) | Destroyed 11 combat bots 22517 | -5/Hub_04(d) | Discovered exit to Factory (range 2) 22551 | -5/Hub_04(d) | Reached level 26 22551 | -5/Hub_04(d) | Network Hub disabled 22659 | -5/Hub_04(d) | Ambient heat levels rising (+10) 22676 | -5/Hub_04(d) | Upgraded with Utility slot (x1) 22699 | -5/Hub_04(d) | Build established: Scavenger-Mutant 22798 | -5/Hub_04(d) | Found EM Dispersion Field 22809 | -5/Hub_04(d) | Ambient heat levels rising (+10) 22959 | -5/Hub_04(d) | Ambient heat levels rising (+10) 23109 | -5/Hub_04(d) | Ambient heat levels rising (+10) 23127 | -5/Hub_04(d) | Entered Factory 23128 | -4/Factory | Loaded intel: 243 machine locations 23296 | -4/Factory | Discovered new exit (range 15) 23319 | -4/Factory | Identified exit to Upper Caves 23352 | -4/Factory | Entered Upper Caves 23477 | -4/Upper Caves | Attacked by a delusional Derelict stockpiling parts 23653 | -4/Upper Caves | Attracted the attention of an 0b10 checkpoint 23768 | -4/Upper Caves | Encountered a Warlord checkpoint 23791 | -4/Upper Caves | Discovered new exit (range 8) 23811 | -4/Upper Caves | Identified exit to Upper Caves 23991 | -4/Upper Caves | Entered another Upper Caves area 24179 | -4/Upper Caves | Discovered new exit (range 5) 24231 | -4/Upper Caves | Learned Extension trap positions 24231 | -4/Upper Caves | Learned Armory trap positions 24231 | -4/Upper Caves | Learned Factory terminal intel 24231 | -4/Upper Caves | Learned Armory terminal intel 24261 | -4/Upper Caves | Encountered a Warlord checkpoint 24427 | -4/Upper Caves | Learned location of 1 exit from Research 24753 | -4/Upper Caves | Discovered new exit (range 5) 24758 | -4/Upper Caves | Identified exit to Warlord 24759 | -4/Upper Caves | Entered Warlord 24956 | -4/Warlord | Met Warlord 24963 | -4/Warlord | Warlord's base attacked by MAIN.C 24972 | -4/Warlord | Opened Warlord's prototype stash 24978 | -4/Warlord | Found Vortex Chain Reactor 25002 | -4/Warlord | Found Prototype Processor 25002 | -4/Warlord | Identified Exp. Core Analyzer 25011 | -4/Warlord | Found Thermal Barrier 25245 | -4/Warlord | Reached level 27 25270 | -4/Warlord | Destroyed 9 combat bots 25285 | -4/Warlord | Destroyed Executioner 25313 | -4/Warlord | Warlord forces counterattacked 25338 | -4/Warlord | Destroyed 11 combat bots 25410 | -4/Warlord | Found Adv. Kinecellerator 25464 | -4/Warlord | Spotted Executioner 25475 | -4/Warlord | Destroyed Executioner 25563 | -4/Warlord | Spotted Executioner 25574 | -4/Warlord | Destroyed Executioner 25663 | -4/Warlord | Spotted B-90 Cyclops 25663 | -4/Warlord | Spotted B-86 Titan 25667 | -4/Warlord | Spotted Striker 25674 | -4/Warlord | Destroyed B-90 Cyclops 25676 | -4/Warlord | Destroyed Striker 25684 | -4/Warlord | Destroyed B-86 Titan 25765 | -4/Warlord | Spotted B-90 Cyclops 25765 | -4/Warlord | Spotted Executioner 25765 | -4/Warlord | P-70 Sage assimilated allied ZO-NUL(g) 25766 | -4/Warlord | Spotted ZO-NUL(g) 25779 | -4/Warlord | Destroyed B-90 Cyclops 25779 | -4/Warlord | Destroyed Executioner 25807 | -4/Warlord | P-70 Sage assimilated allied U5-96P(M) 25849 | -4/Warlord | Destroyed 11 combat bots 25861 | -4/Warlord | Discovered new exit (range 14) 25864 | -4/Warlord | Spotted Striker 25864 | -4/Warlord | Spotted Striker 25881 | -4/Warlord | Identified exit to Proximity Caves 25883 | -4/Warlord | Entered Proximity Caves 25885 | -3/Proximity Caves | Reached level 28 26016 | -3/Proximity Caves | Attracted the attention of an 0b10 outpost 26064 | -3/Proximity Caves | Destroyed 9 combat bots 26559 | -3/Proximity Caves | Discovered new exit (range 3) 26564 | -3/Proximity Caves | Identified exit to Research 26565 | -3/Proximity Caves | Entered Research 26566 | -3/Research | Identified exit to Research 26567 | -3/Research | Loaded intel: 95 machine locations 26567 | -3/Research | Reached level 29 26607 | -3/Research | Upgraded with Utility slot (x1) 26655 | -3/Research | Build established: Scavenger-Tank 27042 | -3/Research | Found Com. Tesla Bomb Launcher 27045 | -3/Research | Found Com. Tesla Bomb Launcher 27264 | -3/Research | Intercept squad dispatched 27270 | -3/Research | Spotted Tracker 27271 | -3/Research | Spotted Tracker 27283 | -3/Research | Spotted Combat Programmer 27283 | -3/Research | Spotted Combat Programmer 27285 | -3/Research | Destroyed Tracker 27301 | -3/Research | Destroyed Tracker 27315 | -3/Research | First assault squad dispatched 27320 | -3/Research | Destroyed Combat Programmer 27344 | -3/Research | Destroyed Combat Programmer 27423 | -3/Research | Destroyed 7 combat bots 27658 | -3/Research | Spotted B-86 Titan 27690 | -3/Research | Reached level 30 27746 | -3/Research | Destroyed B-86 Titan 27814 | -3/Research | Found Antimissile System 27857 | -3/Research | Entered another Research area 27857 | -2/Research | Warlord forces began assault on 0b10 27858 | -2/Research | Loaded intel: 119 machine locations 27967 | -2/Research | Research machine network offline 27999 | -2/Research | Build established: Scavenger-Skirmisher 28404 | -2/Research | Build established: Scavenger-Mutant 28404 | -2/Research | Spotted Tracker 28406 | -2/Research | Spotted Tracker 28408 | -2/Research | Destroyed Tracker 28454 | -2/Research | Spotted Combat Programmer 28461 | -2/Research | Destroyed Combat Programmer 28606 | -2/Research | Spotted Combat Programmer 28609 | -2/Research | Destroyed Combat Programmer 28634 | -2/Research | Spotted Executioner 28638 | -2/Research | Spotted Striker 28643 | -2/Research | Destroyed Executioner 28647 | -2/Research | Reached level 31 28653 | -2/Research | Destroyed Striker 28680 | -2/Research | Upgraded with Power slot (x1) 28704 | -2/Research | Spotted Executioner 28711 | -2/Research | Spotted Executioner 28713 | -2/Research | Spotted Executioner 28716 | -2/Research | Spotted Striker 28717 | -2/Research | Spotted Executioner 28719 | -2/Research | Destroyed Executioner 28719 | -2/Research | Destroyed Executioner 28727 | -2/Research | Destroyed Executioner 28728 | -2/Research | Destroyed Striker 28737 | -2/Research | Destroyed Executioner 28758 | -2/Research | Destroyed 7 combat bots 28790 | -2/Research | Spotted Striker 28792 | -2/Research | Spotted Striker 28796 | -2/Research | Destroyed Striker 28803 | -2/Research | Destroyed Striker 28810 | -2/Research | Upgraded with Weapon slot (x1) 28835 | -2/Research | Spotted Striker 28838 | -2/Research | Destroyed Striker 28897 | -2/Research | Spotted Striker 28911 | -2/Research | Destroyed Striker 28926 | -2/Research | Borebot progress halted 28935 | -2/Research | Borebot progress halted 28957 | -2/Research | Spotted Executioner 28959 | -2/Research | Spotted Striker 28968 | -2/Research | Destroyed Executioner 28972 | -2/Research | Destroyed Striker 29011 | -2/Research | Found Exp. Core Analyzer 29094 | -2/Research | Spotted Tracker 29094 | -2/Research | Spotted Tracker 29094 | -2/Research | Spotted Tracker 29098 | -2/Research | Destroyed Tracker 29102 | -2/Research | Destroyed Tracker 29106 | -2/Research | Destroyed Tracker 29116 | -2/Research | Spotted Combat Programmer 29121 | -2/Research | Destroyed Combat Programmer 29138 | -2/Research | Spotted Combat Programmer 29143 | -2/Research | Destroyed Combat Programmer 29171 | -2/Research | Spotted Executioner 29180 | -2/Research | Spotted Executioner 29190 | -2/Research | Reached level 32 29190 | -2/Research | Destroyed Executioner 29198 | -2/Research | Destroyed Executioner 29219 | -2/Research | Discovered new exit (range 3) 29222 | -2/Research | Identified exit to Access 29225 | -2/Research | Entered Access 29226 | -1/Access | Loaded intel: 104 machine locations 29340 | -1/Access | Reached level 33 29542 | -1/Access | Destroyed 7 combat bots 29556 | -1/Access | High security lockdown imminent 29636 | -1/Access | High security lockdown engaged 29702 | -1/Access | Spotted Striker 29702 | -1/Access | Spotted Executioner 29702 | -1/Access | Reached level 34 29702 | -1/Access | Destroyed Executioner 29710 | -1/Access | Destroyed Striker 29730 | -1/Access | Found Adv. Kinecellerator 29739 | -1/Access | Destroyed 8 combat bots 29848 | -1/Access | Spotted Investigator 29849 | -1/Access | Scanned by Researcher 29852 | -1/Access | Destroyed Investigator 29893 | -1/Access | Reached level 35 29914 | -1/Access | Destroyed 16 combat bots 29944 | -1/Access | Spotted Executioner 29962 | -1/Access | Destroyed Executioner 29995 | -1/Access | Destroyed 10 combat bots 30003 | -1/Access | Spotted Executioner 30003 | -1/Access | Spotted Executioner 30003 | -1/Access | Spotted Striker 30009 | -1/Access | Destroyed Striker 30013 | -1/Access | Destroyed Executioner 30042 | -1/Access | Build established: Scavenger-Executioner 30115 | -1/Access | Destroyed 19 combat bots 30149 | -1/Access | Intercept squad dispatched 30174 | -1/Access | Reached level 36 30176 | -1/Access | Spotted Tracker 30176 | -1/Access | Spotted Tracker 30178 | -1/Access | Destroyed Tracker 30180 | -1/Access | Spotted Striker 30182 | -1/Access | Destroyed Striker 30182 | -1/Access | Destroyed Tracker 30214 | -1/Access | Spotted Combat Programmer 30219 | -1/Access | Spotted Striker 30219 | -1/Access | Spotted Striker 30224 | -1/Access | Destroyed Combat Programmer 30229 | -1/Access | Spotted Executioner 30234 | -1/Access | Spotted Combat Programmer 30237 | -1/Access | Destroyed Striker 30237 | -1/Access | Destroyed Executioner 30246 | -1/Access | Destroyed Executioner 30246 | -1/Access | Destroyed Combat Programmer 30250 | -1/Access | Destroyed Striker 30266 | -1/Access | Destroyed Executioner 30336 | -1/Access | Destroyed 42 combat bots 30349 | -1/Access | Crushed by falling debris 30403 | -1/Access | Spotted Executioner 30406 | -1/Access | Destroyed Executioner 30455 | -1/Access | Destroyed Striker 30459 | -1/Access | Sterilization system engaged 30470 | -1/Access | Spotted Investigator 30471 | -1/Access | Spotted Executioner 30476 | -1/Access | Destroyed Investigator 30479 | -1/Access | Spotted Executioner 30479 | -1/Access | Spotted Executioner 30487 | -1/Access | Core integrity fell below 50% 30497 | -1/Access | Destroyed Executioner 30509 | -1/Access | Core integrity fell below 20% 30509 | -1/Access | Destroyed Executioner 30513 | -1/Access | Destroyed Executioner 30538 | -1/Access | Reached level 37 30559 | -1/Access | Destroyed 24 combat bots 30759 | -1/Access | Ambient heat levels rising (+10) 30841 | -1/Access | Spotted B-99 Colossus 30861 | -1/Access | Destroyed B-99 Colossus 30863 | -1/Access | Spotted B-99 Colossus 30894 | -1/Access | Destroyed B-99 Colossus 30909 | -1/Access | Ambient heat levels rising (+10) 31059 | -1/Access | Ambient heat levels rising (+10) 31209 | -1/Access | Ambient heat levels rising (+10) 31270 | -1/Access | Spotted B-99 Colossus 31359 | -1/Access | Ambient heat levels rising (+10) 31509 | -1/Access | Ambient heat levels rising (+10) 31575 | -1/Access | Discovered new exit (range 4) 31578 | -1/Access | Identified exit to Command 31579 | -1/Access | Entered Command 31580 | -1/Command | Loaded intel: 54 machine locations 31669 | -1/Command | Disengaged cave seal 31669 | -1/Command | Derelicts emerged from the dark tunnel 31669 | -1/Command | Welcomed Warlord to Command 31771 | -1/Command | High security lockdown imminent 31851 | -1/Command | High security lockdown engaged 31880 | -1/Command | Found Prototype Slashing Weapon 31880 | -1/Command | Identified Particle Cleaver 31931 | -1/Command | Phase Generator disabled 32030 | -1/Command | Destroyed RV-ZF7(L) 32126 | -1/Command | Spotted Investigator 32164 | -1/Command | Found Prototype Launcher 32164 | -1/Command | Identified Containment Facilitator 32239 | -1/Command | Spotted Striker 32250 | -1/Command | Destroyed Striker 32269 | -1/Command | Spotted Striker 32269 | -1/Command | Spotted Executioner 32271 | -1/Command | Spotted Striker 32272 | -1/Command | Destroyed Executioner 32276 | -1/Command | Destroyed Striker 32288 | -1/Command | Spotted Executioner 32288 | -1/Command | Destroyed Executioner 32309 | -1/Command | Destroyed 12 combat bots 32392 | -1/Command | Crushed by falling debris 32448 | -1/Command | Spotted Striker 32455 | -1/Command | Spotted Investigator 32455 | -1/Command | Spotted Executioner 32455 | -1/Command | Spotted Executioner 32457 | -1/Command | Spotted Striker 32458 | -1/Command | Spotted Striker 32458 | -1/Command | Spotted Striker 32460 | -1/Command | Spotted Executioner 32462 | -1/Command | Destroyed Striker 32466 | -1/Command | Destroyed Executioner 32474 | -1/Command | Destroyed Investigator 32474 | -1/Command | Destroyed Striker 32474 | -1/Command | Destroyed Executioner 32482 | -1/Command | Destroyed Striker 32496 | -1/Command | Spotted Striker 32496 | -1/Command | Spotted Executioner 32502 | -1/Command | Destroyed Executioner 32506 | -1/Command | Destroyed Striker 32535 | -1/Command | Destroyed 25 combat bots 32655 | -1/Command | Spotted Striker 32656 | -1/Command | Spotted Striker 32660 | -1/Command | Spotted Executioner 32661 | -1/Command | Destroyed Striker 32665 | -1/Command | Spotted Striker 32665 | -1/Command | Spotted Striker 32665 | -1/Command | Spotted Striker 32672 | -1/Command | Destroyed Striker 32673 | -1/Command | Warlord destroyed during the assault 32674 | -1/Command | Spotted Executioner 32676 | -1/Command | Spotted Striker 32676 | -1/Command | Spotted Striker 32692 | -1/Command | Destroyed Striker 32692 | -1/Command | Spotted Striker 32692 | -1/Command | Spotted Executioner 32692 | -1/Command | Spotted Executioner 32695 | -1/Command | Destroyed Striker 32702 | -1/Command | Reached level 38 32702 | -1/Command | Destroyed Striker 32704 | -1/Command | Destroyed Executioner 32706 | -1/Command | Destroyed Executioner 32714 | -1/Command | Destroyed Executioner 32716 | -1/Command | Destroyed Striker 32717 | -1/Command | Destroyed Striker 32717 | -1/Command | Destroyed Striker 32722 | -1/Command | Destroyed Striker 32740 | -1/Command | Spotted Striker 32741 | -1/Command | Spotted Executioner 32743 | -1/Command | Destroyed 25 combat bots 32748 | -1/Command | Destroyed Executioner 32752 | -1/Command | Destroyed Striker 32767 | -1/Command | Destroyed Executioner 32807 | -1/Command | Destroyed 8 combat bots 32974 | -1/Command | Spotted Striker 32974 | -1/Command | Spotted Striker 32982 | -1/Command | Destroyed Striker 32986 | -1/Command | Destroyed Striker 33055 | -1/Command | Destroyed 15 combat bots 33272 | -1/Command | Destroyed 8 combat bots 33723 | -1/Command | Destroyed 97 combat bots 33895 | -1/Command | System corruption reached 10% 33898 | -1/Command | Reached level 39 33939 | -1/Command | Destroyed 31 combat bots 34022 | -1/Command | Destroyed 13 combat bots 34621 | -1/Command | Build established: Scavenger-Mutant 34671 | -1/Command | Destroyed 7 combat bots 34737 | -1/Command | Found Gamma Bomb Array 35371 | -1/Command | Crushed by falling debris 35496 | -1/Command | Spotted B-99 Colossus 35541 | -1/Command | Build established: Scavenger-Executioner 35553 | -1/Command | Destroyed B-99 Colossus 35597 | -1/Command | Found Prototype Ballistic Gun 35597 | -1/Command | Identified Multirail 36685 | -1/Command | Spotted M Guard 36709 | -1/Command | Destroyed Combat Programmer 36729 | -1/Command | Destroyed M Guard 36745 | -1/Command | Destroyed Combat Programmer 36781 | -1/Command | Destroyed M Guard 36781 | -1/Command | All MAIN.C guards destroyed 36817 | -1/Command | Found Zero-point Reactor 36842 | -1/Command | Found Ragnarok Missile Launcher 38468 | -1/Command | Destroyed 10 combat bots 38540 | -1/Command | Destroyed 17 combat bots 38695 | -1/Command | Destroyed 18 combat bots 38791 | -1/Command | Destroyed by L-61 Swordsman with Power Sword Last Messages --------------- 38788_ Upgraded: Core Integrity (+100) 38788_ L-61 Swordsman destroyed. 38788_ Switching to secondary target: B-74 Champion. 38788_ B-74 Champion suffers critical hit. 38788_ Destroyed Med. Treads. 38788_ Slug penetrates B-74 Champion. 38788_ B-74 Champion suffers critical hit. 38788_ B-74 Champion destroyed. 38788_ Switching to secondary target: L-61 Swordsman. 38788_ Slug penetrates Earth. 38788_ Slug penetrates L-61 Swordsman. 38788_ Penetrated by Slug. 38789_ Helical Railgun severed. 38790_ The unstable cave ceiling collapses. 38790_ Xenon Bombardment Thruster crushed. 38790_ Penetrated by Slug. 38791_ The unstable cave ceiling collapses. 38791_ Slug penetrates Earth. [Achievement: Torch] [Achievement: Magneto] Map ----- +----------------------------------------------------+ | ???????????????????????????????????# ##?# | | ???????????????????????????????????# #?# | | ???????????????????????????????????#"""########+## | | ???????????????????????????????????# ####" " | | ???????????????????????????????????# = ! " | | ???????????????????????????????????# "" # | | ???????????????????????????????????# ####" # | | ???????????????????????????????????## ########### | | ?????????????????????? ???????????# # =%= | | ????????????????????# ???????????#! + ! | | ?????????????????? ???????????#=*# | | ?????????i?????? % ??????###??#*!# | | ?????????i??? % #?????# #??#! # """ " | | ?????????i?? % l h [=;?????# #??#[[# """T" | | ???????????? # ;?????# #??#! ########### | | ???????????? ## # ##???# #??#==#?????????? | | ???????????# #h %# #???# #??# *#?????????? | | ???????????# # #% [== ##?##"##?# #?????????? | | ???????????# # #%[#* ### #?# #?????????? | | ???????????# # ## %!### #?????????? | | ???????????# # [ # * ##" ##????????? | | ???????? ;;# # =#;%#### ;#????????" | | ??????? * %[!!![ ##????????" | | ??????? ! !=%l![%=== #?????????" | | ??????? %% % =b!! ! [[===|! ######????" | | ??????? %%l@[ !*== [ ! ; #????" | | ???????????# %l [!*%*!### ######????" | | ???????????# # ## #!*!#?# #?????????? | | ??????????????# ! #! !#?# #?????????? | | ???????????????##%[; # ; # #?# =#?????????? | | ????????????????# #?# ; ;; ####*!##????????? | | ????????????????# ???# ; [*[[=###??????? | | ????????????????#???#; # ##" ! !%=#####??? | | ????????????????????#; ;; ==%!% = ![#### | | ????????????????????;[ # # #%[!!#### ## | | ??????????????????? ! ? ### ######??# ## | | ?????????????????? ; * ?##??## ## ?????### ## | | ????????????????? =%[! ???????##?##????# # | | ???????????????? ![%!== ????????????????# + | | ?????????????????* *;% ????????????????# # | | ????????????????? ;;;# ##????????????????# ### | | ????????????????? # # ??????????????????# ### | | ???????????????????? ? ??????????????????# + | | ?????????????????????? ?????????????????#####+#### | | ????????????????????????????????????????# # | | ????????????????????????????????????????# # | | ????????????????????????????????????????#""" # | | ????????????????????????????????????????#"R # | | ????????????????????????????????????????#""" # | | ????????????????????????????????????????#""" # | +----------------------------------------------------+ Best States ------------- Heat Dissipation 148 Coolant Potential 80 Energy Generation 123 Energy Capacity 2950 Matter Stores 1700 Matter Capacity 1700 Sight Range 18 Robot Scan Range 34 Terrain Scan Range 14 Terrain Scan Density 110 Power Amplification 90 Base Temperature (-) 150 Armor Coverage 2400 Resistance: KI 20 Resistance: TH 50 Resistance: EX 20 Resistance: EM 90 Weapon Shielding 100 Point Defense Rating 240 Weapon Cycling 20 Phase Shifting 20 Evasion (%) 60 Targeting Accuracy 12 Launcher Accuracy 20 Target Analysis 8 Core Analysis 15 Recoil Reduction 4 Matter Filtering 30 Energy Filtering 30 Kinecelleration 50 Salvage Targeting 4 Offensive Hacking 20 Item Schematics ----------------- Combat Drone Bay | -7/Data Miner | Free Lgt. Regenerative Plating | -7/Data Miner | Free Exp. Cesium-ion Thruster | -7/Data Miner | Free Triangulator | -7/Data Miner | Free Exp. Sensor Array | -7/Data Miner | Free Tactical Coordination Suite | -7/Data Miner | Free Exp. Transmission Jammer | -7/Data Miner | Free Plasma Sword | -7/Data Miner | Free Kinetic Spear | -7/Data Miner | Free Hvy. Riot Gun | -6/Zion | Free Arc Thrower | -6/Zion | Free Battle Rifle | -6/Zion | Free Barrage Gun | -6/Zion | Free Battle Cannon | -6/Zion | Free Flamer | -6/Zion | Free Phasing Sabre | -6/Zion | Free Robot Schematics ------------------ S-27 Virus | -7/Data Miner | Free G-50 Soldier | -7/Data Miner | Free G-67 Veteran | -7/Data Miner | Free L-41 Fighter | -7/Data Miner | Free H-66 Slayer | -7/Data Miner | Free I-36 Angel | -7/Data Miner | Free Fabricated ------------ Exp. Sensor Array | x1 | -6/Factory Alien Tech Used ----------------- Core Expander Achievements -------------- 404 Magneto Shocking Conclusion Torch Challenges ------------ None RPGLIKE | -11 -10 -10 -9 -9 -9 -8 -8 -7 -7 -7 -7 -6 -6 -6 -6 -6 -6 -6 -6 -5 -5 -5 -5 -5 -5 -4 -4 -4 -4 -3 -3 -2 -1 -1 --------- Run | Scr Mat Min Mat Min Exi Min Mat Fac Low Low Dat Pro Fac Was Fac Low Low Zio Dee Pro Fac Ext Cet Arc Hub Fac Upp Upp War Pro Res Res Acc Com Levels Raised 38 | . . 1 3 . . 1 3 1 2 1 1 2 1 . 3 . . . . 1 1 1 . 1 2 . . . 1 1 2 2 5 2 XP Earned 60793 | 3000 1450 1413 3320 575 350 1600 3885 1800 2300 2050 2150 1700 2290 189 3568 221 187 118 518 1251 950 1786 801 215 2831 507 151 373 1587 1325 2110 2981 7616 3625 XP Spent 55250 | . 1370 800 6030 500 . . 5700 750 2800 125 . 900 7400 . 2280 . . . . 2900 . 3200 . . 5170 . . . . . 3800 3700 2585 5240 Upgrades 93 | . 5 1 14 1 . . 11 3 2 2 . 2 11 . 5 . . . . 1 . 1 . . 5 . . . . . 1 5 8 15 Power Slot 2 | . . . . . . . . . 1 . . . . . . . . . . . . . . . . . . . . . . 1 . . Propulsion Slot 3 | . . . 2 . . . . . . . . . 1 . . . . . . . . . . . . . . . . . . . . . Utility Slot 12 | . 1 1 3 . . . 1 . 1 . . . 1 . . . . . . 1 . 1 . . 1 . . . . . 1 . . . Weapon Slot 4 | . 1 . . . . . 2 . . . . . . . . . . . . . . . . . . . . . . . . 1 . . Core Integrity 21 | . . . 8 . . . . . . . . . . . . . . . . . . . . . 2 . . . . . . . 7 4 Heat Dissipation 16 | . 2 . . . . . 7 3 . . . . . . 4 . . . . . . . . . . . . . . . . . . . Mass Support 1 | . . . . . . . . . . . . . 1 . . . . . . . . . . . . . . . . . . . . . Inventory Capacity 6 | . 1 . . 1 . . 1 . . . . . . . 1 . . . . . . . . . 1 . . . . . . . 1 . Sight Range 2 | . . . . . . . . . . . . . . . . . . . . . . . . . . . . . . . . . . 2 Sensor Range 2 | . . . . . . . . . . 2 . . . . . . . . . . . . . . . . . . . . . . . . Terrain Scan Density 1 | . . . 1 . . . . . . . . . . . . . . . . . . . . . . . . . . . . . . . Ranged Accuracy 4 | . . . . . . . . . . . . 2 . . . . . . . . . . . . . . . . . . . . . 2 Hack Attack % 4 | . . . . . . . . . . . . . . . . . . . . . . . . . 1 . . . . . . . . 3 KI Resistance % 4 | . . . . . . . . . . . . . 4 . . . . . . . . . . . . . . . . . . . . . TH Resistance % 4 | . . . . . . . . . . . . . 4 . . . . . . . . . . . . . . . . . . . . . EX Resistance % 4 | . . . . . . . . . . . . . . . . . . . . . . . . . . . . . . . . . . 4 KI Damage % 3 | . . . . . . . . . . . . . . . . . . . . . . . . . . . . . . . . 3 . . Protomatter Created 17599 | . 52 18 143 . . 201 88 . 192 . . 22 . 88 454 5 . . 974 90 108 430 149 . 2610 . 81 57 991 577 772 471 2706 6320 Integrity Restored 26743 | . 151 54 429 . . 603 297 . 528 . . 30 . 9 1488 14 . . 1016 144 19 290 551 . 2993 . 243 133 1931 979 1592 849 3913 8487 Core 18742 | . 131 54 429 . . 603 297 . 528 . . 30 . 9 925 14 . . 536 77 11 120 49 . 2236 . 243 69 509 488 1046 628 3328 6382 Parts 8001 | . 20 . . . . . . . . . . . . . 563 . . . 480 67 8 170 502 . 757 . . 64 1422 491 546 221 585 2105 Protomatter Decayed 15904 | . 15 18 15 . . . . . . 41 . 12 . . 325 . . . 1410 38 99 476 162 . 1655 . . 11 1796 244 229 3009 3317 3032 Game ------ Seed AlphaDirtyInitializer Manual? 0 Play Time 07:22:49 Cumulative 332.2 hours Start 2021.07.12 @ 02:14:49 End 2021.07.13 @ 08:55:59 Sessions 5 Manual Loads 0 Difficulty Rogue Special Mode Winter2019/RPGLIKE Game No. 166 Rogue 163 Adventurer 1 Explorer 2 Win Type - Total 5 Types 3/1/1/0/0/0/0/0/0 Lore% 81 Gallery% 89 Achievement% 69 Wizard Run 0 Options --------- ASCII 0 Keyboard 1 Movement Numpad Keybinds 1 Fullscreen 2 Font 24/Terminus Map View 76x50 Tactical HUD 1 Map Filters NONE Filters LOW_CONTRAST(0,0,0) Steam 1 RUN: 021db105-b383-41ff-9ac7-8e794033f059